{"text_format":"1","workbook":"xlsx","n_sheets":4,"sheets":["Importez","Complétez","Pour l'élève","Attendus Prog"],"not_rendered":{"charts":0,"images":2,"macros":1,"external_links":0,"defined_names":38,"comments":0,"pivot_tables":0},"unopened":[],"bounds":{"document_bytes":16777216,"sheet_cells":100000,"rows_first":2000,"rows_last":500,"rows_between":2000,"halvings":0,"cell_chars":16384,"cell_head_chars":4096},"cells_cut":0,"cells_raw":0,"read":"whole","date_system":"1900"}

{"sheet":"Importez","index":0,"n_rows":46,"n_cols":47,"rows_kept":46,"cut":false,"hidden":false,"merged":[[1,13,1,14],[4,3,8,3],[0,0,3,2],[2,3,3,3],[1,6,1,12],[2,4,2,13],[3,4,3,13],[0,4,0,18],[1,3,1,4],[2,14,3,16]]}
["à masquer",null,null,null,"                  Proposer à vos élèves,sur un lieu sécurisé, de se situer, se projeter, apprécier, modéliser leurs progrès, au cours de la séquence, de l'année voire des années "]
[null,null,null,{"$f":"E5","v":0},null,null,"Merci de spécifier le type d'établissement, ci-contre   >>",null,null,null,null,null,null,"Collège"]
[null,null,null,"Importez :","    1/ Collez la sélection \"data 3\" de l'application Eps suivi +, à partir de la cellule violette (\"collez les valeurs\")",null,null,null,null,null,null,null,null,null,"Vidéo :"]
[null,null,null,null,"    2/ Des codes sont attribués par défaut pour chacun de vos élèves. Vous avez la liberté de les modifier !"]
["Collège cycle III",null,null,"Codes   élèves"]
["Collège cycle IV"]
["CAP"]
["GT Bac Lycée"]
["Option EPS"]
["Pro Bac Lycée",null,{"$f":"E10","v":0},46,null,null,null,null,null,null,null,null,null,null,null,null,null,null,null,null,null,null,null,null,null,null,null,null,null,null,null,null,null,null,null,null,null,null,null,null,null,null,null,null,null,"",""]
["Spécialité EPPCS",null,{"$f":"E11","v":0},83,null,null,null,null,null,null,null,null,null,null,null,null,null,null,null,null,null,null,null,null,null,null,null,null,null,null,null,null,null,null,null,null,null,null,null,null,null,null,null,null,null,"",""]
[null,null,0,120,null,null,null,null,null,null,null,null,null,null,null,null,null,null,null,null,null,null,null,null,null,null,null,null,null,null,null,null,null,null,null,null,null,null,null,null,null,null,null,null,null,"",""]
["Collège",null,0,157,null,null,null,null,null,null,null,null,null,null,null,null,null,null,null,null,null,null,null,null,null,null,null,null,null,null,null,null,null,null,null,null,null,null,null,null,null,null,null,null,null,"",""]
["Lycée_GT",null,0,194,null,null,null,null,null,null,null,null,null,null,null,null,null,null,null,null,null,null,null,null,null,null,null,null,null,null,null,null,null,null,null,null,null,null,null,null,null,null,null,null,null,"",""]
["Lycée_Pro",null,0,231,null,null,null,null,null,null,null,null,null,null,null,null,null,null,null,null,null,null,null,null,null,null,null,null,null,null,null,null,null,null,null,null,null,null,null,null,null,null,null,null,null,"",""]
[null,null,0,268,null,null,null,null,null,null,null,null,null,null,null,null,null,null,null,null,null,null,null,null,null,null,null,null,null,null,null,null,null,null,null,null,null,null,null,null,null,null,null,null,null,"",""]
[null,null,0,305,null,null,null,null,null,null,null,null,null,null,null,null,null,null,null,null,null,null,null,null,null,null,null,null,null,null,null,null,null,null,null,null,null,null,null,null,null,null,null,null,null,"",""]
[null,null,0,342,null,null,null,null,null,null,null,null,null,null,null,null,null,null,null,null,null,null,null,null,null,null,null,null,null,null,null,null,null,null,null,null,null,null,null,null,null,null,null,null,null,"",""]
[null,null,0,379,null,null,null,null,null,null,null,null,null,null,null,null,null,null,null,null,null,null,null,null,null,null,null,null,null,null,null,null,null,null,null,null,null,null,null,null,null,null,null,null,null,"",""]
[null,null,0,416,null,null,null,null,null,null,null,null,null,null,null,null,null,null,null,null,null,null,null,null,null,null,null,null,null,null,null,null,null,null,null,null,null,null,null,null,null,null,null,null,null,"",""]
[null,null,0,453,null,null,null,null,null,null,null,null,null,null,null,null,null,null,null,null,null,null,null,null,null,null,null,null,null,null,null,null,null,null,null,null,null,null,null,null,null,null,null,null,null,"",""]
[null,null,0,490,null,null,null,null,null,null,null,null,null,null,null,null,null,null,null,null,null,null,null,null,null,null,null,null,null,null,null,null,null,null,null,null,null,null,null,null,null,null,null,null,null,"",""]
[null,null,0,527,null,null,null,null,null,null,null,null,null,null,null,null,null,null,null,null,null,null,null,null,null,null,null,null,null,null,null,null,null,null,null,null,null,null,null,null,null,null,null,null,null,"",""]
[null,null,0,564,null,null,null,null,null,null,null,null,null,null,null,null,null,null,null,null,null,null,null,null,null,null,null,null,null,null,null,null,null,null,null,null,null,null,null,null,null,null,null,null,null,"",""]
[null,null,0,601,null,null,null,null,null,null,null,null,null,null,null,null,null,null,null,null,null,null,null,null,null,null,null,null,null,null,null,null,null,null,null,null,null,null,null,null,null,null,null,null,null,"",""]
[null,null,0,638,null,null,null,null,null,null,null,null,null,null,null,null,null,null,null,null,null,null,null,null,null,null,null,null,null,null,null,null,null,null,null,null,null,null,null,null,null,null,null,null,null,"",""]
[null,null,0,675,null,null,null,null,null,null,null,null,null,null,null,null,null,null,null,null,null,null,null,null,null,null,null,null,null,null,null,null,null,null,null,null,null,null,null,null,null,null,null,null,null,"",""]
[null,null,0,712,null,null,null,null,null,null,null,null,null,null,null,null,null,null,null,null,null,null,null,null,null,null,null,null,null,null,null,null,null,null,null,null,null,null,null,null,null,null,null,null,null,"",""]
[null,null,0,749,null,null,null,null,null,null,null,null,null,null,null,null,null,null,null,null,null,null,null,null,null,null,null,null,null,null,null,null,null,null,null,null,null,null,null,null,null,null,null,null,null,"",""]
[null,null,0,786,null,null,null,null,null,null,null,null,null,null,null,null,null,null,null,null,null,null,null,null,null,null,null,null,null,null,null,null,null,null,null,null,null,null,null,null,null,null,null,null,null,"",""]
[null,null,0,823,null,null,null,null,null,null,null,null,null,null,null,null,null,null,null,null,null,null,null,null,null,null,null,null,null,null,null,null,null,null,null,null,null,null,null,null,null,null,null,null,null,"",""]
[null,null,0,860,null,null,null,null,null,null,null,null,null,null,null,null,null,null,null,null,null,null,null,null,null,null,null,null,null,null,null,null,null,null,null,null,null,null,null,null,null,null,null,null,null,"",""]
[null,null,0,897,null,null,null,null,null,null,null,null,null,null,null,null,null,null,null,null,null,null,null,null,null,null,null,null,null,null,null,null,null,null,null,null,null,null,null,null,null,null,null,null,null,"",""]
[null,null,0,934,null,null,null,null,null,null,null,null,null,null,null,null,null,null,null,null,null,null,null,null,null,null,null,null,null,null,null,null,null,null,null,null,null,null,null,null,null,null,null,null,null,"",""]
[null,null,0,971,null,null,null,null,null,null,null,null,null,null,null,null,null,null,null,null,null,null,null,null,null,null,null,null,null,null,null,null,null,null,null,null,null,null,null,null,null,null,null,null,null,"",""]
[null,null,0,null,null,null,null,null,null,null,null,null,null,null,null,null,null,null,null,null,null,null,null,null,null,null,null,null,null,null,null,null,null,null,null,null,null,null,null,null,null,null,null,null,null,"",""]
[null,null,0,null,null,null,null,null,null,null,null,null,null,null,null,null,null,null,null,null,null,null,null,null,null,null,null,null,null,null,null,null,null,null,null,null,null,null,null,null,null,null,null,null,null,"",""]
[null,null,0,null,null,null,null,null,null,null,null,null,null,null,null,null,null,null,null,null,null,null,null,null,null,null,null,null,null,null,null,null,null,null,null,null,null,null,null,null,null,null,null,null,null,"",""]
[null,null,0,null,null,null,null,null,null,null,null,null,null,null,null,null,null,null,null,null,null,null,null,null,null,null,null,null,null,null,null,null,null,null,null,null,null,null,null,null,null,null,null,null,null,"",""]
[null,null,0,null,null,null,null,null,null,null,null,null,null,null,null,null,null,null,null,null,null,null,null,null,null,null,null,null,null,null,null,null,null,null,null,null,null,null,null,null,null,null,null,null,null,"",""]
[null,null,0,null,null,null,null,null,null,null,null,null,null,null,null,null,null,null,null,null,null,null,null,null,null,null,null,null,null,null,null,null,null,null,null,null,null,null,null,null,null,null,null,null,null,"",""]
[null,null,0,null,null,null,null,null,null,null,null,null,null,null,null,null,null,null,null,null,null,null,null,null,null,null,null,null,null,null,null,null,null,null,null,null,null,null,null,null,null,null,null,null,null,"",""]
[null,null,0,null,null,null,null,null,null,null,null,null,null,null,null,null,null,null,null,null,null,null,null,null,null,null,null,null,null,null,null,null,null,null,null,null,null,null,null,null,null,null,null,null,null,"",""]
[null,null,0,null,null,null,null,null,null,null,null,null,null,null,null,null,null,null,null,null,null,null,null,null,null,null,null,null,null,null,null,null,null,null,null,null,null,null,null,null,null,null,null,null,null,"",""]
[null,null,0,null,null,null,null,null,null,null,null,null,null,null,null,null,null,null,null,null,null,null,null,null,null,null,null,null,null,null,null,null,null,null,null,null,null,null,null,null,null,null,null,null,null,"",""]
[null,null,0,null,null,null,null,null,null,null,null,null,null,null,null,null,null,null,null,null,null,null,null,null,null,null,null,null,null,null,null,null,null,null,null,null,null,null,null,null,null,null,null,null,null,"",""]

{"sheet":"Complétez","index":1,"n_rows":34,"n_cols":49,"rows_kept":34,"cut":false,"hidden":false,"merged":[[2,3,3,3],[1,15,1,17],[4,15,4,18],[9,3,9,4],[8,5,8,8],[5,5,5,8],[4,5,4,8],[5,10,5,13],[4,10,4,13],[7,2,8,2],[7,3,8,3],[7,44,8,44],[8,40,8,43],[7,39,8,39],[7,9,8,9],[8,15,8,18],[7,29,8,29],[8,25,8,28],[7,24,8,24],[8,35,8,38],[7,34,8,34],[8,30,8,33],[7,14,8,14],[8,10,8,13],[4,40,4,43],[5,40,5,43],[4,44,6,44],[4,30,4,33],[5,30,5,33],[4,34,6,34],[4,35,4,38],[5,35,5,38],[4,39,6,39],[0,4,0,18],[4,29,6,29],[8,20,8,23],[7,19,8,19],[4,24,6,24],[5,15,5,18],[4,19,6,19],[4,20,4,23],[5,20,5,23],[4,25,4,28],[5,25,5,28],[1,5,1,14],[4,9,6,9],[4,14,6,14],[2,4,2,16],[1,3,1,4],[28,4,28,17],[27,4,27,17],[2,17,3,17],[3,4,3,13],[33,4,39,4]]}
[{"$f":"Importez!N2","v":"Collège"},null,null,null,"Proposer à vos élèves,sur un lieu sécurisé, de se situer, se projeter, apprécier, modéliser leurs progrès, au cours de la séquence, de l'année, voire des années"]
[null,null,null,null,null,{"$f":"IF(A1=\"Collège\",\"Merci de spécifier, si vos élèves sont en cycle 3, en cycle 4, ou si vous souhaitez définir et utiliser des attendus personnalisés, d' Equipe *  >> ci-contre >>\",IF(A1=\"Lycée_GT\",\"Merci de spécifier, si vos élèves sont simplement concernés par l'enseignement commun d'EPS, s'ils sont en option EPS, en spécialité EPPCS,  ou si vous souhaitez définir et utiliser des attendus personnalisés, d' Equipe *  >> ci-contre >>\",\"Merci de spécifier, si vos élèves sont en CAP, en Bac Pro,  ou si vous souhaitez définir et utiliser des attendus personnalisés, d' Equipe *  >> ci-contre >>\"))","v":"Merci de spécifier, si vos élèves sont en cycle 3, en cycle 4, ou si vous souhaitez définir et utiliser des attendus personnalisés, d' Equipe *  >> ci-contre >>"},null,null,null,null,null,null,null,null,null,"Equipe",null,null,{"$f":"IF($P$2=0,\"\",$P$2)","v":"Equipe"},null,null,null,null,{"$f":"IF($P$2=0,\"\",$P$2)","v":"Equipe"},null,null,null,null,{"$f":"IF($P$2=0,\"\",$P$2)","v":"Equipe"},null,null,null,null,{"$f":"IF($P$2=0,\"\",$P$2)","v":"Equipe"},null,null,null,null,{"$f":"IF($P$2=0,\"\",$P$2)","v":"Equipe"},null,null,null,null,{"$f":"IF($P$2=0,\"\",$P$2)","v":"Equipe"},null,null,null,null,{"$f":"IF($P$2=0,\"\",$P$2)","v":"Equipe"}]
[null,null,null,"Complétez :","    3/ Précisez, ci-dessous, les attendus (rappelés par liste déroulante) et les compétences travaillées pour chacune de vos séquences",null,null,null,null,null,null,null,null,null,null,null,null,{"$f":"IF(P2=\"Equipe\",\"* Complétez le 2ème tableau ci-dessous\",\"\")","v":"* Complétez le 2ème tableau ci-dessous"}]
[null,null,null,null," 4/ Enfin, partagez avec vos élèves sur un lieu sécurisé comme leur ENT, la feuille : \"Pour l'élève\"               (feuille sur laquelle, vous n'avez plus qu'à cliquer sur le bouton \"Mettre à jour\" , avant d'enregistrer)"]
[null,null,null,null,{"$f":"Importez!E5","v":0},{"$f":"Importez!F5","v":0},null,null,null,{"$f":"Importez!J5","v":0},{"$f":"Importez!K5","v":0},null,null,null,{"$f":"Importez!O5","v":0},{"$f":"Importez!P5","v":0},null,null,null,{"$f":"Importez!T5","v":0},{"$f":"Importez!U5","v":0},null,null,null,{"$f":"Importez!Y5","v":0},{"$f":"Importez!Z5","v":0},null,null,null,{"$f":"Importez!AD5","v":0},{"$f":"Importez!AE5","v":0},null,null,null,{"$f":"Importez!AI5","v":0},{"$f":"Importez!AJ5","v":0},null,null,null,{"$f":"Importez!AN5","v":0},{"$f":"Importez!AO5","v":0},null,null,null,{"$f":"Importez!AS5","v":0}]
[null,null,null,null,{"$f":"Importez!E6","v":0},{"$f":"Importez!F6","v":0},null,null,null,null,{"$f":"Importez!K6","v":0},null,null,null,null,{"$f":"Importez!P6","v":0},null,null,null,null,{"$f":"Importez!U6","v":0},null,null,null,null,{"$f":"Importez!Z6","v":0},null,null,null,null,{"$f":"Importez!AE6","v":0},null,null,null,null,{"$f":"Importez!AJ6","v":0},null,null,null,null,{"$f":"Importez!AO6","v":0}]
[null,null,null,null,{"$f":"Importez!E7","v":0},{"$f":"Importez!F7","v":0},{"$f":"Importez!G7","v":0},{"$f":"Importez!H7","v":0},{"$f":"Importez!I7","v":0},null,{"$f":"Importez!K7","v":0},{"$f":"Importez!L7","v":0},{"$f":"Importez!M7","v":0},{"$f":"Importez!N7","v":0},null,{"$f":"Importez!P7","v":0},{"$f":"Importez!Q7","v":0},{"$f":"Importez!R7","v":0},{"$f":"Importez!S7","v":0},null,{"$f":"Importez!U7","v":0},{"$f":"Importez!V7","v":0},{"$f":"Importez!W7","v":0},{"$f":"Importez!X7","v":0},null,{"$f":"Importez!Z7","v":0},{"$f":"Importez!AA7","v":0},{"$f":"Importez!AB7","v":0},{"$f":"Importez!AC7","v":0},null,{"$f":"Importez!AE7","v":0},{"$f":"Importez!AF7","v":0},{"$f":"Importez!AG7","v":0},{"$f":"Importez!AH7","v":0},null,{"$f":"Importez!AJ7","v":0},{"$f":"Importez!AK7","v":0},{"$f":"Importez!AL7","v":0},{"$f":"Importez!AM7","v":0},null,{"$f":"Importez!AO7","v":0},{"$f":"Importez!AP7","v":0},{"$f":"Importez!AQ7","v":0},{"$f":"Importez!AR7","v":0}]
[null,null,null,null,{"$f":"Importez!E8","v":0},"",""," "," ",{"$f":"Importez!J8","v":0},"","","","",{"$f":"Importez!O8","v":0},null,null,null,"",{"$f":"Importez!T8","v":0},null,null,null,null,{"$f":"Importez!Y8","v":0},null,null,null,null,{"$f":"Importez!AD8","v":0},null,null,null,null,{"$f":"Importez!AI8","v":0},null,null,null,null,{"$f":"Importez!AN8","v":0},null,null,null,null,{"$f":"Importez!AS8","v":0}]
[null,null,null,null,{"$f":"Importez!E9","v":0}]
[null,null,46,"BONMORT Valentine",null,{"$f":"IFERROR(VLOOKUP($D$10,Importez!$C$10:$AS$47,4,0),\"-\")","v":"-"},{"$f":"IFERROR(VLOOKUP($D$10,Importez!$C$10:$AS$47,5,0),\"-\")","v":"-"},{"$f":"IFERROR(VLOOKUP($D$10,Importez!$C$10:$AS$47,6,0),\"-\")","v":"-"},{"$f":"IFERROR(VLOOKUP($D$10,Importez!$C$10:$AS$47,7,0),\"-\")","v":"-"},{"$f":"IFERROR(VLOOKUP($D$10,Importez!$C$10:$AS$47,8,0),\"-\")","v":"-"},{"$f":"IFERROR(VLOOKUP($D$10,Importez!$C$10:$AS$47,9,0),\"-\")","v":"-"},{"$f":"IFERROR(VLOOKUP($D$10,Importez!$C$10:$AS$47,10,0),\"-\")","v":"-"},{"$f":"IFERROR(VLOOKUP($D$10,Importez!$C$10:$AS$47,11,0),\"-\")","v":"-"},{"$f":"IFERROR(VLOOKUP($D$10,Importez!$C$10:$AS$47,12,0),\"-\")","v":"-"},{"$f":"IFERROR(VLOOKUP($D$10,Importez!$C$10:$AS$47,13,0),\"-\")","v":"-"},{"$f":"IFERROR(VLOOKUP($D$10,Importez!$C$10:$AS$47,14,0),\"-\")","v":"-"},{"$f":"IFERROR(VLOOKUP($D$10,Importez!$C$10:$AS$47,15,0),\"-\")","v":"-"},{"$f":"IFERROR(VLOOKUP($D$10,Importez!$C$10:$AS$47,16,0),\"-\")","v":"-"},{"$f":"IFERROR(VLOOKUP($D$10,Importez!$C$10:$AS$47,17,0),\"-\")","v":"-"},{"$f":"IFERROR(VLOOKUP($D$10,Importez!$C$10:$AS$47,18,0),\"-\")","v":"-"},{"$f":"IFERROR(VLOOKUP($D$10,Importez!$C$10:$AS$47,19,0),\"-\")","v":"-"},{"$f":"IFERROR(VLOOKUP($D$10,Importez!$C$10:$AS$47,20,0),\"-\")","v":"-"},{"$f":"IFERROR(VLOOKUP($D$10,Importez!$C$10:$AS$47,21,0),\"-\")","v":"-"},{"$f":"IFERROR(VLOOKUP($D$10,Importez!$C$10:$AS$47,22,0),\"-\")","v":"-"},{"$f":"IFERROR(VLOOKUP($D$10,Importez!$C$10:$AS$47,23,0),\"-\")","v":"-"},{"$f":"IFERROR(VLOOKUP($D$10,Importez!$C$10:$AS$47,24,0),\"-\")","v":"-"},{"$f":"IFERROR(VLOOKUP($D$10,Importez!$C$10:$AS$47,25,0),\"-\")","v":"-"},{"$f":"IFERROR(VLOOKUP($D$10,Importez!$C$10:$AS$47,26,0),\"-\")","v":"-"},{"$f":"IFERROR(VLOOKUP($D$10,Importez!$C$10:$AS$47,27,0),\"-\")","v":"-"},{"$f":"IFERROR(VLOOKUP($D$10,Importez!$C$10:$AS$47,28,0),\"-\")","v":"-"},{"$f":"IFERROR(VLOOKUP($D$10,Importez!$C$10:$AS$47,29,0),\"-\")","v":"-"},{"$f":"IFERROR(VLOOKUP($D$10,Importez!$C$10:$AS$47,30,0),\"-\")","v":"-"},{"$f":"IFERROR(VLOOKUP($D$10,Importez!$C$10:$AS$47,31,0),\"-\")","v":"-"},{"$f":"IFERROR(VLOOKUP($D$10,Importez!$C$10:$AS$47,32,0),\"-\")","v":"-"},{"$f":"IFERROR(VLOOKUP($D$10,Importez!$C$10:$AS$47,33,0),\"-\")","v":"-"},{"$f":"IFERROR(VLOOKUP($D$10,Importez!$C$10:$AS$47,34,0),\"-\")","v":"-"},{"$f":"IFERROR(VLOOKUP($D$10,Importez!$C$10:$AS$47,35,0),\"-\")","v":"-"},{"$f":"IFERROR(VLOOKUP($D$10,Importez!$C$10:$AS$47,36,0),\"-\")","v":"-"},{"$f":"IFERROR(VLOOKUP($D$10,Importez!$C$10:$AS$47,37,0),\"-\")","v":"-"},{"$f":"IFERROR(VLOOKUP($D$10,Importez!$C$10:$AS$47,38,0),\"-\")","v":"-"},{"$f":"IFERROR(VLOOKUP($D$10,Importez!$C$10:$AS$47,39,0),\"-\")","v":"-"},{"$f":"IFERROR(VLOOKUP($D$10,Importez!$C$10:$AS$47,40,0),\"-\")","v":"-"},{"$f":"IFERROR(VLOOKUP($D$10,Importez!$C$10:$AS$47,41,0),\"-\")","v":"-"},{"$f":"IFERROR(VLOOKUP($D$10,Importez!$C$10:$AS$47,42,0),\"-\")","v":"-"},{"$f":"IFERROR(VLOOKUP($D$10,Importez!$C$10:$AS$47,43,0),\"-\")","v":"-"}]
[null,null,null,null,"Moyennes de Classe",{"$f":"Importez!F47","v":0},{"$f":"Importez!G47","v":0},{"$f":"Importez!H47","v":0},{"$f":"Importez!I47","v":0},{"$f":"Importez!J47","v":0},{"$f":"Importez!K47","v":0},{"$f":"Importez!L47","v":0},{"$f":"Importez!M47","v":0},{"$f":"Importez!N47","v":0},{"$f":"Importez!O47","v":0},{"$f":"Importez!P47","v":0},{"$f":"Importez!Q47","v":0},{"$f":"Importez!R47","v":0},{"$f":"Importez!S47","v":0},{"$f":"Importez!T47","v":0},{"$f":"Importez!U47","v":0},{"$f":"Importez!V47","v":0},{"$f":"Importez!W47","v":0},{"$f":"Importez!X47","v":0},{"$f":"Importez!Y47","v":0},{"$f":"Importez!Z47","v":0},{"$f":"Importez!AA47","v":0},{"$f":"Importez!AB47","v":0},{"$f":"Importez!AC47","v":0},{"$f":"Importez!AD47","v":0},{"$f":"Importez!AE47","v":0},{"$f":"Importez!AF47","v":0},{"$f":"Importez!AG47","v":0},{"$f":"Importez!AH47","v":0},{"$f":"Importez!AI47","v":0},{"$f":"Importez!AJ47","v":0},{"$f":"Importez!AK47","v":0},{"$f":"Importez!AL47","v":0},{"$f":"Importez!AM47","v":0},{"$f":"Importez!AN47","v":0},{"$f":"Importez!AO47","v":0},{"$f":"Importez!AP47","v":0},{"$f":"Importez!AQ47","v":0},{"$f":"Importez!AR47","v":0},{"$f":"Importez!AS47","v":0}]
[null,null,null,null,null,{"$f":"Importez!F48","v":0},{"$f":"Importez!G48","v":0},{"$f":"Importez!H48","v":0},{"$f":"Importez!I48","v":0},{"$f":"Importez!J48","v":0},{"$f":"Importez!K48","v":0},{"$f":"Importez!L48","v":0},{"$f":"Importez!M48","v":0},{"$f":"Importez!N48","v":0},{"$f":"Importez!O48","v":0},{"$f":"Importez!P48","v":0},{"$f":"Importez!Q48","v":0},{"$f":"Importez!R48","v":0},{"$f":"Importez!S48","v":0},{"$f":"Importez!T48","v":0},{"$f":"Importez!U48","v":0},{"$f":"Importez!V48","v":0},{"$f":"Importez!W48","v":0},{"$f":"Importez!X48","v":0},{"$f":"Importez!Y48","v":0},{"$f":"Importez!Z48","v":0},{"$f":"Importez!AA48","v":0},{"$f":"Importez!AB48","v":0},{"$f":"Importez!AC48","v":0},{"$f":"Importez!AD48","v":0},{"$f":"Importez!AE48","v":0},{"$f":"Importez!AF48","v":0},{"$f":"Importez!AG48","v":0},{"$f":"Importez!AH48","v":0},{"$f":"Importez!AI48","v":0},{"$f":"Importez!AJ48","v":0},{"$f":"Importez!AK48","v":0},{"$f":"Importez!AL48","v":0},{"$f":"Importez!AM48","v":0},{"$f":"Importez!AN48","v":0},{"$f":"Importez!AO48","v":0},{"$f":"Importez!AP48","v":0},{"$f":"Importez!AQ48","v":0},{"$f":"Importez!AR48","v":0},{"$f":"Importez!AS48","v":0}]
[null,null,null,null,null,{"$f":"Importez!F49","v":0},{"$f":"Importez!G49","v":0},{"$f":"Importez!H49","v":0},{"$f":"Importez!I49","v":0},{"$f":"Importez!J49","v":0},{"$f":"Importez!K49","v":0},{"$f":"Importez!L49","v":0},{"$f":"Importez!M49","v":0},{"$f":"Importez!N49","v":0},{"$f":"Importez!O49","v":0},{"$f":"Importez!P49","v":0},{"$f":"Importez!Q49","v":0},{"$f":"Importez!R49","v":0},{"$f":"Importez!S49","v":0},{"$f":"Importez!T49","v":0},{"$f":"Importez!U49","v":0},{"$f":"Importez!V49","v":0},{"$f":"Importez!W49","v":0},{"$f":"Importez!X49","v":0},{"$f":"Importez!Y49","v":0},{"$f":"Importez!Z49","v":0},{"$f":"Importez!AA49","v":0},{"$f":"Importez!AB49","v":0},{"$f":"Importez!AC49","v":0},{"$f":"Importez!AD49","v":0},{"$f":"Importez!AE49","v":0},{"$f":"Importez!AF49","v":0},{"$f":"Importez!AG49","v":0},{"$f":"Importez!AH49","v":0},{"$f":"Importez!AI49","v":0},{"$f":"Importez!AJ49","v":0},{"$f":"Importez!AK49","v":0},{"$f":"Importez!AL49","v":0},{"$f":"Importez!AM49","v":0},{"$f":"Importez!AN49","v":0},{"$f":"Importez!AO49","v":0},{"$f":"Importez!AP49","v":0},{"$f":"Importez!AQ49","v":0},{"$f":"Importez!AR49","v":0},{"$f":"Importez!AS49","v":0}]
[null,null,null,null,null,{"$f":"Importez!F50","v":0},{"$f":"Importez!G50","v":0},{"$f":"Importez!H50","v":0},{"$f":"Importez!I50","v":0},{"$f":"Importez!J50","v":0},{"$f":"Importez!K50","v":0},{"$f":"Importez!L50","v":0},{"$f":"Importez!M50","v":0},{"$f":"Importez!N50","v":0},{"$f":"Importez!O50","v":0},{"$f":"Importez!P50","v":0},{"$f":"Importez!Q50","v":0},{"$f":"Importez!R50","v":0},{"$f":"Importez!S50","v":0},{"$f":"Importez!T50","v":0},{"$f":"Importez!U50","v":0},{"$f":"Importez!V50","v":0},{"$f":"Importez!W50","v":0},{"$f":"Importez!X50","v":0},{"$f":"Importez!Y50","v":0},{"$f":"Importez!Z50","v":0},{"$f":"Importez!AA50","v":0},{"$f":"Importez!AB50","v":0},{"$f":"Importez!AC50","v":0},{"$f":"Importez!AD50","v":0},{"$f":"Importez!AE50","v":0},{"$f":"Importez!AF50","v":0},{"$f":"Importez!AG50","v":0},{"$f":"Importez!AH50","v":0},{"$f":"Importez!AI50","v":0},{"$f":"Importez!AJ50","v":0},{"$f":"Importez!AK50","v":0},{"$f":"Importez!AL50","v":0},{"$f":"Importez!AM50","v":0},{"$f":"Importez!AN50","v":0},{"$f":"Importez!AO50","v":0},{"$f":"Importez!AP50","v":0},{"$f":"Importez!AQ50","v":0},{"$f":"Importez!AR50","v":0},{"$f":"Importez!AS50","v":0}]
[]
[null,null,null,null,{"$f":"LEFT($P$2,1)&RIGHT($P$2,1)&RIGHT($F$5)","v":"Ee0"},{"$f":"IF(HLOOKUP(E$16,'Attendus Prog'!$B$1:$AO$8,2,0)=0,\"\",HLOOKUP(E$16,'Attendus Prog'!$B$1:$AO$8,2,0))","v":{"$error":"#N/A"}},null,null,null,{"$f":"LEFT($S$2,1)&RIGHT($S$2,1)&RIGHT($K$5)","v":"Ee0"},{"$f":"IF(HLOOKUP(J$16,'Attendus Prog'!$B$1:$AO$8,2,0)=0,\"\",HLOOKUP(J$16,'Attendus Prog'!$B$1:$AO$8,2,0))","v":{"$error":"#N/A"}},null,null,null,{"$f":"LEFT($X$2,1)&RIGHT($X$2,1)&RIGHT($P$5)","v":"Ee0"},{"$f":"IF(HLOOKUP(O$16,'Attendus Prog'!$B$1:$AO$8,2,0)=0,\"\",HLOOKUP(O$16,'Attendus Prog'!$B$1:$AO$8,2,0))","v":{"$error":"#N/A"}},null,null,null,{"$f":"LEFT($AC$2,1)&RIGHT($AC$2,1)&RIGHT($U$5)","v":"Ee0"},{"$f":"IF(HLOOKUP(T$16,'Attendus Prog'!$B$1:$AO$8,2,0)=0,\"\",HLOOKUP(T$16,'Attendus Prog'!$B$1:$AO$8,2,0))","v":{"$error":"#N/A"}},null,null,null,{"$f":"LEFT($AH$2,1)&RIGHT($AH$2,1)&RIGHT($Z$5)","v":"Ee0"},{"$f":"IF(HLOOKUP(Y$16,'Attendus Prog'!$B$1:$AO$8,2,0)=0,\"\",HLOOKUP(Y$16,'Attendus Prog'!$B$1:$AO$8,2,0))","v":{"$error":"#N/A"}},null,null,null,{"$f":"LEFT($AM$2,1)&RIGHT($AM$2,1)&RIGHT($AE$5)","v":"Ee0"},{"$f":"IF(HLOOKUP(AD$16,'Attendus Prog'!$B$1:$AO$8,2,0)=0,\"\",HLOOKUP(AD$16,'Attendus Prog'!$B$1:$AO$8,2,0))","v":{"$error":"#N/A"}},null,null,null,{"$f":"LEFT($AR$2,1)&RIGHT($AR$2,1)&RIGHT($AJ$5)","v":"Ee0"},{"$f":"IF(HLOOKUP(AI$16,'Attendus Prog'!$B$1:$AO$8,2,0)=0,\"\",HLOOKUP(AI$16,'Attendus Prog'!$B$1:$AO$8,2,0))","v":{"$error":"#N/A"}},null,null,null,{"$f":"LEFT($AW$2,1)&RIGHT($AW$2,1)&RIGHT($AO$5)","v":"Ee0"},{"$f":"IF(HLOOKUP(AN$16,'Attendus Prog'!$B$1:$AO$8,2,0)=0,\"\",HLOOKUP(AN$16,'Attendus Prog'!$B$1:$AO$8,2,0))","v":{"$error":"#N/A"}}]
[null,null,null,null,null,{"$f":"IF(HLOOKUP(E$16,'Attendus Prog'!$B$1:$AO$8,3,0)=0,\"\",HLOOKUP(E$16,'Attendus Prog'!$B$1:$AO$8,3,0))","v":{"$error":"#N/A"}},null,null,null,null,{"$f":"IF(HLOOKUP(J$16,'Attendus Prog'!$B$1:$AO$8,3,0)=0,\"\",HLOOKUP(J$16,'Attendus Prog'!$B$1:$AO$8,3,0))","v":{"$error":"#N/A"}},null,null,null,null,{"$f":"IF(HLOOKUP(O$16,'Attendus Prog'!$B$1:$AO$8,3,0)=0,\"\",HLOOKUP(O$16,'Attendus Prog'!$B$1:$AO$8,3,0))","v":{"$error":"#N/A"}},null,null,null,null,{"$f":"IF(HLOOKUP(T$16,'Attendus Prog'!$B$1:$AO$8,3,0)=0,\"\",HLOOKUP(T$16,'Attendus Prog'!$B$1:$AO$8,3,0))","v":{"$error":"#N/A"}},null,null,null,null,{"$f":"IF(HLOOKUP(Y$16,'Attendus Prog'!$B$1:$AO$8,3,0)=0,\"\",HLOOKUP(Y$16,'Attendus Prog'!$B$1:$AO$8,3,0))","v":{"$error":"#N/A"}},null,null,null,null,{"$f":"IF(HLOOKUP(AD$16,'Attendus Prog'!$B$1:$AO$8,3,0)=0,\"\",HLOOKUP(AD$16,'Attendus Prog'!$B$1:$AO$8,3,0))","v":{"$error":"#N/A"}},null,null,null,null,{"$f":"IF(HLOOKUP(AI$16,'Attendus Prog'!$B$1:$AO$8,3,0)=0,\"\",HLOOKUP(AI$16,'Attendus Prog'!$B$1:$AO$8,3,0))","v":{"$error":"#N/A"}},null,null,null,null,{"$f":"IF(HLOOKUP(AN$16,'Attendus Prog'!$B$1:$AO$8,3,0)=0,\"\",HLOOKUP(AN$16,'Attendus Prog'!$B$1:$AO$8,3,0))","v":{"$error":"#N/A"}}]
[null,null,null,null,null,{"$f":"IF(HLOOKUP(E$16,'Attendus Prog'!$B$1:$AO$8,4,0)=0,\"\",HLOOKUP(E$16,'Attendus Prog'!$B$1:$AO$8,4,0))","v":{"$error":"#N/A"}},null,null,null,null,{"$f":"IF(HLOOKUP(J$16,'Attendus Prog'!$B$1:$AO$8,4,0)=0,\"\",HLOOKUP(J$16,'Attendus Prog'!$B$1:$AO$8,4,0))","v":{"$error":"#N/A"}},null,null,null,null,{"$f":"IF(HLOOKUP(O$16,'Attendus Prog'!$B$1:$AO$8,4,0)=0,\"\",HLOOKUP(O$16,'Attendus Prog'!$B$1:$AO$8,4,0))","v":{"$error":"#N/A"}},null,null,null,null,{"$f":"IF(HLOOKUP(T$16,'Attendus Prog'!$B$1:$AO$8,4,0)=0,\"\",HLOOKUP(T$16,'Attendus Prog'!$B$1:$AO$8,4,0))","v":{"$error":"#N/A"}},null,null,null,null,{"$f":"IF(HLOOKUP(Y$16,'Attendus Prog'!$B$1:$AO$8,4,0)=0,\"\",HLOOKUP(Y$16,'Attendus Prog'!$B$1:$AO$8,4,0))","v":{"$error":"#N/A"}},null,null,null,null,{"$f":"IF(HLOOKUP(AD$16,'Attendus Prog'!$B$1:$AO$8,4,0)=0,\"\",HLOOKUP(AD$16,'Attendus Prog'!$B$1:$AO$8,4,0))","v":{"$error":"#N/A"}},null,null,null,null,{"$f":"IF(HLOOKUP(AI$16,'Attendus Prog'!$B$1:$AO$8,4,0)=0,\"\",HLOOKUP(AI$16,'Attendus Prog'!$B$1:$AO$8,4,0))","v":{"$error":"#N/A"}},null,null,null,null,{"$f":"IF(HLOOKUP(AN$16,'Attendus Prog'!$B$1:$AO$8,4,0)=0,\"\",HLOOKUP(AN$16,'Attendus Prog'!$B$1:$AO$8,4,0))","v":{"$error":"#N/A"}}]
[null,null,null,null,null,{"$f":"IF(HLOOKUP(E$16,'Attendus Prog'!$B$1:$AO$8,5,0)=0,\"\",HLOOKUP(E$16,'Attendus Prog'!$B$1:$AO$8,5,0))","v":{"$error":"#N/A"}},null,null,null,null,{"$f":"IF(HLOOKUP(J$16,'Attendus Prog'!$B$1:$AO$8,5,0)=0,\"\",HLOOKUP(J$16,'Attendus Prog'!$B$1:$AO$8,5,0))","v":{"$error":"#N/A"}},null,null,null,null,{"$f":"IF(HLOOKUP(O$16,'Attendus Prog'!$B$1:$AO$8,5,0)=0,\"\",HLOOKUP(O$16,'Attendus Prog'!$B$1:$AO$8,5,0))","v":{"$error":"#N/A"}},null,null,null,null,{"$f":"IF(HLOOKUP(T$16,'Attendus Prog'!$B$1:$AO$8,5,0)=0,\"\",HLOOKUP(T$16,'Attendus Prog'!$B$1:$AO$8,5,0))","v":{"$error":"#N/A"}},null,null,null,null,{"$f":"IF(HLOOKUP(Y$16,'Attendus Prog'!$B$1:$AO$8,5,0)=0,\"\",HLOOKUP(Y$16,'Attendus Prog'!$B$1:$AO$8,5,0))","v":{"$error":"#N/A"}},null,null,null,null,{"$f":"IF(HLOOKUP(AD$16,'Attendus Prog'!$B$1:$AO$8,5,0)=0,\"\",HLOOKUP(AD$16,'Attendus Prog'!$B$1:$AO$8,5,0))","v":{"$error":"#N/A"}},null,null,null,null,{"$f":"IF(HLOOKUP(AI$16,'Attendus Prog'!$B$1:$AO$8,5,0)=0,\"\",HLOOKUP(AI$16,'Attendus Prog'!$B$1:$AO$8,5,0))","v":{"$error":"#N/A"}},null,null,null,null,{"$f":"IF(HLOOKUP(AN$16,'Attendus Prog'!$B$1:$AO$8,5,0)=0,\"\",HLOOKUP(AN$16,'Attendus Prog'!$B$1:$AO$8,5,0))","v":{"$error":"#N/A"}}]
[null,null,null,null,null,{"$f":"IF(HLOOKUP(E$16,'Attendus Prog'!$B$1:$AO$8,6,0)=0,\"\",HLOOKUP(E$16,'Attendus Prog'!$B$1:$AO$8,6,0))","v":{"$error":"#N/A"}},null,null,null,null,{"$f":"IF(HLOOKUP(J$16,'Attendus Prog'!$B$1:$AO$8,6,0)=0,\"\",HLOOKUP(J$16,'Attendus Prog'!$B$1:$AO$8,6,0))","v":{"$error":"#N/A"}},null,null,null,null,{"$f":"IF(HLOOKUP(O$16,'Attendus Prog'!$B$1:$AO$8,6,0)=0,\"\",HLOOKUP(O$16,'Attendus Prog'!$B$1:$AO$8,6,0))","v":{"$error":"#N/A"}},null,null,null,null,{"$f":"IF(HLOOKUP(T$16,'Attendus Prog'!$B$1:$AO$8,6,0)=0,\"\",HLOOKUP(T$16,'Attendus Prog'!$B$1:$AO$8,6,0))","v":{"$error":"#N/A"}},null,null,null,null,{"$f":"IF(HLOOKUP(Y$16,'Attendus Prog'!$B$1:$AO$8,6,0)=0,\"\",HLOOKUP(Y$16,'Attendus Prog'!$B$1:$AO$8,6,0))","v":{"$error":"#N/A"}},null,null,null,null,{"$f":"IF(HLOOKUP(AD$16,'Attendus Prog'!$B$1:$AO$8,6,0)=0,\"\",HLOOKUP(AD$16,'Attendus Prog'!$B$1:$AO$8,6,0))","v":{"$error":"#N/A"}},null,null,null,null,{"$f":"IF(HLOOKUP(AI$16,'Attendus Prog'!$B$1:$AO$8,6,0)=0,\"\",HLOOKUP(AI$16,'Attendus Prog'!$B$1:$AO$8,6,0))","v":{"$error":"#N/A"}},null,null,null,null,{"$f":"IF(HLOOKUP(AN$16,'Attendus Prog'!$B$1:$AO$8,6,0)=0,\"\",HLOOKUP(AN$16,'Attendus Prog'!$B$1:$AO$8,6,0))","v":{"$error":"#N/A"}}]
[null,null,null,null,null,{"$f":"IF(HLOOKUP(E$16,'Attendus Prog'!$B$1:$AO$8,7,0)=0,\"\",HLOOKUP(E$16,'Attendus Prog'!$B$1:$AO$8,7,0))","v":{"$error":"#N/A"}},null,null,null,null,{"$f":"IF(HLOOKUP(J$16,'Attendus Prog'!$B$1:$AO$8,7,0)=0,\"\",HLOOKUP(J$16,'Attendus Prog'!$B$1:$AO$8,7,0))","v":{"$error":"#N/A"}},null,null,null,null,{"$f":"IF(HLOOKUP(O$16,'Attendus Prog'!$B$1:$AO$8,7,0)=0,\"\",HLOOKUP(O$16,'Attendus Prog'!$B$1:$AO$8,7,0))","v":{"$error":"#N/A"}},null,null,null,null,{"$f":"IF(HLOOKUP(T$16,'Attendus Prog'!$B$1:$AO$8,7,0)=0,\"\",HLOOKUP(T$16,'Attendus Prog'!$B$1:$AO$8,7,0))","v":{"$error":"#N/A"}},null,null,null,null,{"$f":"IF(HLOOKUP(Y$16,'Attendus Prog'!$B$1:$AO$8,7,0)=0,\"\",HLOOKUP(Y$16,'Attendus Prog'!$B$1:$AO$8,7,0))","v":{"$error":"#N/A"}},null,null,null,null,{"$f":"IF(HLOOKUP(AD$16,'Attendus Prog'!$B$1:$AO$8,7,0)=0,\"\",HLOOKUP(AD$16,'Attendus Prog'!$B$1:$AO$8,7,0))","v":{"$error":"#N/A"}},null,null,null,null,{"$f":"IF(HLOOKUP(AI$16,'Attendus Prog'!$B$1:$AO$8,7,0)=0,\"\",HLOOKUP(AI$16,'Attendus Prog'!$B$1:$AO$8,7,0))","v":{"$error":"#N/A"}},null,null,null,null,{"$f":"IF(HLOOKUP(AN$16,'Attendus Prog'!$B$1:$AO$8,7,0)=0,\"\",HLOOKUP(AN$16,'Attendus Prog'!$B$1:$AO$8,7,0))","v":{"$error":"#N/A"}}]
[null,null,null,null,null,{"$f":"IF(HLOOKUP(E$16,'Attendus Prog'!$B$1:$AO$8,8,0)=0,\"\",HLOOKUP(E$16,'Attendus Prog'!$B$1:$AO$8,8,0))","v":{"$error":"#N/A"}},null,null,null,null,{"$f":"IF(HLOOKUP(J$16,'Attendus Prog'!$B$1:$AO$8,8,0)=0,\"\",HLOOKUP(J$16,'Attendus Prog'!$B$1:$AO$8,8,0))","v":{"$error":"#N/A"}},null,null,null,null,{"$f":"IF(HLOOKUP(O$16,'Attendus Prog'!$B$1:$AO$8,8,0)=0,\"\",HLOOKUP(O$16,'Attendus Prog'!$B$1:$AO$8,8,0))","v":{"$error":"#N/A"}},null,null,null,null,{"$f":"IF(HLOOKUP(T$16,'Attendus Prog'!$B$1:$AO$8,8,0)=0,\"\",HLOOKUP(T$16,'Attendus Prog'!$B$1:$AO$8,8,0))","v":{"$error":"#N/A"}},null,null,null,null,{"$f":"IF(HLOOKUP(Y$16,'Attendus Prog'!$B$1:$AO$8,8,0)=0,\"\",HLOOKUP(Y$16,'Attendus Prog'!$B$1:$AO$8,8,0))","v":{"$error":"#N/A"}},null,null,null,null,{"$f":"IF(HLOOKUP(AD$16,'Attendus Prog'!$B$1:$AO$8,8,0)=0,\"\",HLOOKUP(AD$16,'Attendus Prog'!$B$1:$AO$8,8,0))","v":{"$error":"#N/A"}},null,null,null,null,{"$f":"IF(HLOOKUP(AI$16,'Attendus Prog'!$B$1:$AO$8,8,0)=0,\"\",HLOOKUP(AI$16,'Attendus Prog'!$B$1:$AO$8,8,0))","v":{"$error":"#N/A"}},null,null,null,null,{"$f":"IF(HLOOKUP(AN$16,'Attendus Prog'!$B$1:$AO$8,8,0)=0,\"\",HLOOKUP(AN$16,'Attendus Prog'!$B$1:$AO$8,8,0))","v":{"$error":"#N/A"}}]
[null,null,null,null,null,{"$f":"IF(HLOOKUP(E$16,'Attendus Prog'!$B$1:$AO$9,9,0)=0,\"\",HLOOKUP(E$16,'Attendus Prog'!$B$1:$AO$9,9,0))","v":{"$error":"#N/A"}},null,null,null,null,{"$f":"IF(HLOOKUP(J$16,'Attendus Prog'!$B$1:$AO$9,9,0)=0,\"\",HLOOKUP(J$16,'Attendus Prog'!$B$1:$AO$9,9,0))","v":{"$error":"#N/A"}},null,null,null,null,{"$f":"IF(HLOOKUP(O$16,'Attendus Prog'!$B$1:$AO$9,9,0)=0,\"\",HLOOKUP(O$16,'Attendus Prog'!$B$1:$AO$9,9,0))","v":{"$error":"#N/A"}},null,null,null,null,{"$f":"IF(HLOOKUP(T$16,'Attendus Prog'!$B$1:$AO$9,9,0)=0,\"\",HLOOKUP(T$16,'Attendus Prog'!$B$1:$AO$9,9,0))","v":{"$error":"#N/A"}},null,null,null,null,{"$f":"IF(HLOOKUP(Y$16,'Attendus Prog'!$B$1:$AO$9,9,0)=0,\"\",HLOOKUP(Y$16,'Attendus Prog'!$B$1:$AO$9,9,0))","v":{"$error":"#N/A"}},null,null,null,null,{"$f":"IF(HLOOKUP(AD$16,'Attendus Prog'!$B$1:$AO$9,9,0)=0,\"\",HLOOKUP(AD$16,'Attendus Prog'!$B$1:$AO$9,9,0))","v":{"$error":"#N/A"}},null,null,null,null,{"$f":"IF(HLOOKUP(AI$16,'Attendus Prog'!$B$1:$AO$9,9,0)=0,\"\",HLOOKUP(AI$16,'Attendus Prog'!$B$1:$AO$9,9,0))","v":{"$error":"#N/A"}},null,null,null,null,{"$f":"IF(HLOOKUP(AN$16,'Attendus Prog'!$B$1:$AO$9,9,0)=0,\"\",HLOOKUP(AN$16,'Attendus Prog'!$B$1:$AO$9,9,0))","v":{"$error":"#N/A"}}]
[]
[]
[null,null,null,"Pour exemple >>>",{"$f":"Importez!E10","v":0},{"$f":"Importez!F10","v":0},{"$f":"Importez!G10","v":0},{"$f":"Importez!H10","v":0},{"$f":"Importez!I10","v":0},{"$f":"Importez!J10","v":0},{"$f":"Importez!K10","v":0},{"$f":"Importez!L10","v":0},{"$f":"Importez!M10","v":0},{"$f":"Importez!N10","v":0},{"$f":"Importez!O10","v":0},{"$f":"Importez!P10","v":0},{"$f":"Importez!Q10","v":0},{"$f":"Importez!R10","v":0},{"$f":"Importez!S10","v":0},{"$f":"Importez!T10","v":0},{"$f":"Importez!U10","v":0},{"$f":"Importez!V10","v":0},{"$f":"Importez!W10","v":0},{"$f":"Importez!X10","v":0},{"$f":"Importez!Y10","v":0},{"$f":"Importez!Z10","v":0},{"$f":"Importez!AA10","v":0},{"$f":"Importez!AB10","v":0},{"$f":"Importez!AC10","v":0},{"$f":"Importez!AD10","v":0},{"$f":"Importez!AE10","v":0},{"$f":"Importez!AF10","v":0},{"$f":"Importez!AG10","v":0},{"$f":"Importez!AH10","v":0},{"$f":"Importez!AI10","v":0},{"$f":"Importez!AJ10","v":0},{"$f":"Importez!AK10","v":0},{"$f":"Importez!AL10","v":0},{"$f":"Importez!AM10","v":0},{"$f":"Importez!AN10","v":0},{"$f":"Importez!AO10","v":0},{"$f":"Importez!AP10","v":0},{"$f":"Importez!AQ10","v":0},{"$f":"Importez!AR10","v":0},{"$f":"Importez!AS10","v":0}]
[null,null,null,null,null,null,null,null,null,null,null,null,null,null,null,null,null,null,{"$f":"Importez!S11","v":0},{"$f":"Importez!T11","v":0},{"$f":"Importez!U11","v":0},{"$f":"Importez!V11","v":0},{"$f":"Importez!W11","v":0},{"$f":"Importez!X11","v":0},{"$f":"Importez!Y11","v":0},{"$f":"Importez!Z11","v":0},{"$f":"Importez!AA11","v":0},{"$f":"Importez!AB11","v":0},{"$f":"Importez!AC11","v":0},{"$f":"Importez!AD11","v":0},{"$f":"Importez!AE11","v":0},{"$f":"Importez!AF11","v":0},{"$f":"Importez!AG11","v":0},{"$f":"Importez!AH11","v":0},{"$f":"Importez!AI11","v":0},{"$f":"Importez!AJ11","v":0},{"$f":"Importez!AK11","v":0},{"$f":"Importez!AL11","v":0},{"$f":"Importez!AM11","v":0},{"$f":"Importez!AN11","v":0},{"$f":"Importez!AO11","v":0},{"$f":"Importez!AP11","v":0},{"$f":"Importez!AQ11","v":0},{"$f":"Importez!AR11","v":0},{"$f":"Importez!AS11","v":0}]
[null,null,null,null,"* Si vous avez fait le choix \" Equipe \", complétez le tableau ci-dessous",null,null,null,null,null,null,null,null,null,null,null,null,null,{"$f":"Importez!S12","v":0},{"$f":"Importez!T12","v":0},{"$f":"Importez!U12","v":0},{"$f":"Importez!V12","v":0},{"$f":"Importez!W12","v":0},{"$f":"Importez!X12","v":0},{"$f":"Importez!Y12","v":0},{"$f":"Importez!Z12","v":0},{"$f":"Importez!AA12","v":0},{"$f":"Importez!AB12","v":0},{"$f":"Importez!AC12","v":0},{"$f":"Importez!AD12","v":0},{"$f":"Importez!AE12","v":0},{"$f":"Importez!AF12","v":0},{"$f":"Importez!AG12","v":0},{"$f":"Importez!AH12","v":0},{"$f":"Importez!AI12","v":0},{"$f":"Importez!AJ12","v":0},{"$f":"Importez!AK12","v":0},{"$f":"Importez!AL12","v":0},{"$f":"Importez!AM12","v":0},{"$f":"Importez!AN12","v":0},{"$f":"Importez!AO12","v":0},{"$f":"Importez!AP12","v":0},{"$f":"Importez!AQ12","v":0},{"$f":"Importez!AR12","v":0},{"$f":"Importez!AS12","v":0}]
[null,null,null,null,"Vous pourrez alors utiliser par liste déroulante vos propres attendus par champ",null,null,null,null,null,null,null,null,null,null,null,null,null,{"$f":"Importez!S13","v":0},{"$f":"Importez!T13","v":0},{"$f":"Importez!U13","v":0},{"$f":"Importez!V13","v":0},{"$f":"Importez!W13","v":0},{"$f":"Importez!X13","v":0},{"$f":"Importez!Y13","v":0},{"$f":"Importez!Z13","v":0},{"$f":"Importez!AA13","v":0},{"$f":"Importez!AB13","v":0},{"$f":"Importez!AC13","v":0},{"$f":"Importez!AD13","v":0},{"$f":"Importez!AE13","v":0},{"$f":"Importez!AF13","v":0},{"$f":"Importez!AG13","v":0},{"$f":"Importez!AH13","v":0},{"$f":"Importez!AI13","v":0},{"$f":"Importez!AJ13","v":0},{"$f":"Importez!AK13","v":0},{"$f":"Importez!AL13","v":0},{"$f":"Importez!AM13","v":0},{"$f":"Importez!AN13","v":0},{"$f":"Importez!AO13","v":0},{"$f":"Importez!AP13","v":0},{"$f":"Importez!AQ13","v":0},{"$f":"Importez!AR13","v":0},{"$f":"Importez!AS13","v":0}]
[]
[]
[]
[null,null,null,null,"Vos attendus par champ","C1","C2","C3","C4","C5"]
[null,null,null,null,"Choix Equipe"]

{"sheet":"Pour l'élève","index":2,"n_rows":19,"n_cols":45,"rows_kept":19,"cut":false,"hidden":false,"merged":[[4,35,4,38],[4,39,6,39],[4,40,4,43],[4,14,6,14],[4,15,4,18],[4,34,6,34],[5,35,5,38],[8,40,8,43],[5,40,5,43],[8,15,8,18],[8,20,8,23],[8,25,8,28],[8,30,8,33],[8,35,8,38],[4,44,6,44],[5,5,5,8],[5,10,5,13],[5,15,5,18],[5,20,5,23],[5,25,5,28],[4,19,6,19],[4,20,4,23],[4,24,6,24],[4,25,4,28],[4,29,6,29],[4,30,4,33],[5,30,5,33],[4,5,4,8],[4,9,6,9],[4,10,4,13],[2,2,3,3],[10,3,10,4],[9,3,9,4],[8,5,8,8],[8,10,8,13],[15,4,18,4],[2,4,2,13],[3,4,3,13],[0,4,0,22],[1,4,1,21]]}
[{"$f":"Importez!N2","v":"Collège"},null,null,null,"                   Il s'agit de vous permette de vous situez, vous projetez, apprécier, modéliser vos progrès, au cours de la séquence (point d'étape), de l'année, voire des années   "]
[null,null,null,null,"Voici par séquence, les degrés d'acquisition que vous avez atteints, vos notes ainsi que le rappel des attendus et compétences travaillées"]
[null,null,"Vos acquisitions :",null," 1/ Recherchez votre nom et prénom dans la liste déroulante "]
[null,null,null,null," 2/ Renseignez votre code "]
[null,null,null,null,{"$f":"Importez!E5","v":0},{"$f":"IF(Importez!F5=\"Champ d'apprentissage 1\",\"Champ d'apprentissage 1 : réaliser une performance motrice maximale mesurable à une échéance donnée\",IF(Importez!F5=\"Champ d'apprentissage 2\",\"Champ d'apprentissage 2 : adapter son déplacement à des environnements variés ou incertains\",IF(Importez!F5=\"Champ d'apprentissage 3\",\"Champ d'apprentissage 3 : réaliser une prestation corporelle destinée à être vue et appréciée\",IF(Importez!F5=\"Champ d'apprentissage 4\",\"Champ d'apprentissage 4 :conduire et maîtriser un affrontement collectif ou interindividuel pour gagner\",IF(Importez!F5=\"Champ d'apprentissage 5\",\"Champ d'apprentissage 5 : réaliser une activité physique pour développer ses ressources et s’entretenir\",\"Champ d'apprentissage ?\")))))","v":"Champ d'apprentissage ?"},null,null,null,{"$f":"Importez!J5","v":0},{"$f":"IF(Importez!K5=\"Champ d'apprentissage 1\",\"Champ d'apprentissage 1 : réaliser une performance motrice maximale mesurable à une échéance donnée\",IF(Importez!K5=\"Champ d'apprentissage 2\",\"Champ d'apprentissage 2 : adapter son déplacement à des environnements variés ou incertains\",IF(Importez!K5=\"Champ d'apprentissage 3\",\"Champ d'apprentissage 3 : réaliser une prestation corporelle destinée à être vue et appréciée\",IF(Importez!K5=\"Champ d'apprentissage 4\",\"Champ d'apprentissage 4 :conduire et maîtriser un affrontement collectif ou interindividuel pour gagner\",IF(Importez!K5=\"Champ d'apprentissage 5\",\"Champ d'apprentissage 5 : réaliser une activité physique pour développer ses ressources et s’entretenir\",\"Champ d'apprentissage ?\")))))","v":"Champ d'apprentissage ?"},null,null,null,{"$f":"Importez!O5","v":0},{"$f":"IF(Importez!P5=\"Champ d'apprentissage 1\",\"Champ d'apprentissage 1 : réaliser une performance motrice maximale mesurable à une échéance donnée\",IF(Importez!P5=\"Champ d'apprentissage 2\",\"Champ d'apprentissage 2 : adapter son déplacement à des environnements variés ou incertains\",IF(Importez!P5=\"Champ d'apprentissage 3\",\"Champ d'apprentissage 3 : réaliser une prestation corporelle destinée à être vue et appréciée\",IF(Importez!P5=\"Champ d'apprentissage 4\",\"Champ d'apprentissage 4 :conduire et maîtriser un affrontement collectif ou interindividuel pour gagner\",IF(Importez!P5=\"Champ d'apprentissage 5\",\"Champ d'apprentissage 5 : réaliser une activité physique pour développer ses ressources et s’entretenir\",\"Champ d'apprentissage ?\")))))","v":"Champ d'apprentissage ?"},null,null,null,{"$f":"Importez!T5","v":0},{"$f":"IF(Importez!U5=\"Champ d'apprentissage 1\",\"Champ d'apprentissage 1 : réaliser une performance motrice maximale mesurable à une échéance donnée\",IF(Importez!U5=\"Champ d'apprentissage 2\",\"Champ d'apprentissage 2 : adapter son déplacement à des environnements variés ou incertains\",IF(Importez!U5=\"Champ d'apprentissage 3\",\"Champ d'apprentissage 3 : réaliser une prestation corporelle destinée à être vue et appréciée\",IF(Importez!U5=\"Champ d'apprentissage 4\",\"Champ d'apprentissage 4 :conduire et maîtriser un affrontement collectif ou interindividuel pour gagner\",IF(Importez!U5=\"Champ d'apprentissage 5\",\"Champ d'apprentissage 5 : réaliser une activité physique pour développer ses ressources et s’entretenir\",\"Champ d'apprentissage ?\")))))","v":"Champ d'apprentissage ?"},null,null,null,{"$f":"Importez!Y5","v":0},{"$f":"IF(Importez!Z5=\"Champ d'apprentissage 1\",\"Champ d'apprentissage 1 : réaliser une performance motrice maximale mesurable à une échéance donnée\",IF(Importez!Z5=\"Champ d'apprentissage 2\",\"Champ d'apprentissage 2 : adapter son déplacement à des environnements variés ou incertains\",IF(Importez!Z5=\"Champ d'apprentissage 3\",\"Champ d'apprentissage 3 : réaliser une prestation corporelle destinée à être vue et appréciée\",IF(Importez!Z5=\"Champ d'apprentissage 4\",\"Champ d'apprentissage 4 :conduire et maîtriser un affrontement collectif ou interindividuel pour gagner\",IF(Importez!Z5=\"Champ d'apprentissage 5\",\"Champ d'apprentissage 5 : réaliser une activité physique pour développer ses ressources et s’entretenir\",\"Champ d'apprentissage ?\")))))","v":"Champ d'apprentissage ?"},null,null,null,{"$f":"Importez!AD5","v":0},{"$f":"IF(Importez!AE5=\"Champ d'apprentissage 1\",\"Champ d'apprentissage 1 : réaliser une performance motrice maximale mesurable à une échéance donnée\",IF(Importez!AE5=\"Champ d'apprentissage 2\",\"Champ d'apprentissage 2 : adapter son déplacement à des environnements variés ou incertains\",IF(Importez!AE5=\"Champ d'apprentissage 3\",\"Champ d'apprentissage 3 : réaliser une prestation corporelle destinée à être vue et appréciée\",IF(Importez!AE5=\"Champ d'apprentissage 4\",\"Champ d'apprentissage 4 :conduire et maîtriser un affrontement collectif ou interindividuel pour gagner\",IF(Importez!AE5=\"Champ d'apprentissage 5\",\"Champ d'apprentissage 5 : réaliser une activité physique pour développer ses ressources et s’entretenir\",\"Champ d'apprentissage ?\")))))","v":"Champ d'apprentissage ?"},null,null,null,{"$f":"Importez!AI5","v":0},{"$f":"IF(Importez!AJ5=\"Champ d'apprentissage 1\",\"Champ d'apprentissage 1 : réaliser une performance motrice maximale mesurable à une échéance donnée\",IF(Importez!AJ5=\"Champ d'apprentissage 2\",\"Champ d'apprentissage 2 : adapter son déplacement à des environnements variés ou incertains\",IF(Importez!AJ5=\"Champ d'apprentissage 3\",\"Champ d'apprentissage 3 : réaliser une prestation corporelle destinée à être vue et appréciée\",IF(Importez!AJ5=\"Champ d'apprentissage 4\",\"Champ d'apprentissage 4 :conduire et maîtriser un affrontement collectif ou interindividuel pour gagner\",IF(Importez!AJ5=\"Champ d'apprentissage 5\",\"Champ d'apprentissage 5 : réaliser une activité physique pour développer ses ressources et s’entretenir\",\"Champ d'apprentissage ?\")))))","v":"Champ d'apprentissage ?"},null,null,null,{"$f":"Importez!AN5","v":0},{"$f":"IF(Importez!AO5=\"Champ d'apprentissage 1\",\"Champ d'apprentissage 1 : réaliser une performance motrice maximale mesurable à une échéance donnée\",IF(Importez!AO5=\"Champ d'apprentissage 2\",\"Champ d'apprentissage 2 : adapter son déplacement à des environnements variés ou incertains\",IF(Importez!AO5=\"Champ d'apprentissage 3\",\"Champ d'apprentissage 3 : réaliser une prestation corporelle destinée à être vue et appréciée\",IF(Importez!AO5=\"Champ d'apprentissage 4\",\"Champ d'apprentissage 4 :conduire et maîtriser un affrontement collectif ou interindividuel pour gagner\",IF(Importez!AO5=\"Champ d'apprentissage 5\",\"Champ d'apprentissage 5 : réaliser une activité physique pour développer ses ressources et s’entretenir\",\"Champ d'apprentissage ?\")))))","v":"Champ d'apprentissage ?"},null,null,null,{"$f":"Importez!AS5","v":0}]
[null,null,null,null,{"$f":"Importez!E6","v":0},{"$f":"Importez!F6","v":0},null,null,null,null,{"$f":"Importez!K6","v":0},null,null,null,null,{"$f":"Importez!P6","v":0},null,null,null,null,{"$f":"Importez!U6","v":0},null,null,null,null,{"$f":"Importez!Z6","v":0},null,null,null,null,{"$f":"Importez!AE6","v":0},null,null,null,null,{"$f":"Importez!AJ6","v":0},null,null,null,null,{"$f":"Importez!AO6","v":0}]
["!!!!!",{"$f":"IFERROR(VLOOKUP(D10,Importez!C10:AS47,2,0),\"-\")","v":"-"},null,null,{"$f":"Importez!E7","v":0},{"$f":"Importez!F7","v":0},{"$f":"Importez!G7","v":0},{"$f":"Importez!H7","v":0},{"$f":"Importez!I7","v":0},null,{"$f":"Importez!K7","v":0},{"$f":"Importez!L7","v":0},{"$f":"Importez!M7","v":0},{"$f":"Importez!N7","v":0},null,{"$f":"Importez!P7","v":0},{"$f":"Importez!Q7","v":0},{"$f":"Importez!R7","v":0},{"$f":"Importez!S7","v":0},null,{"$f":"Importez!U7","v":0},{"$f":"Importez!V7","v":0},{"$f":"Importez!W7","v":0},{"$f":"Importez!X7","v":0},null,{"$f":"Importez!Z7","v":0},{"$f":"Importez!AA7","v":0},{"$f":"Importez!AB7","v":0},{"$f":"Importez!AC7","v":0},null,{"$f":"Importez!AE7","v":0},{"$f":"Importez!AF7","v":0},{"$f":"Importez!AG7","v":0},{"$f":"Importez!AH7","v":0},null,{"$f":"Importez!AJ7","v":0},{"$f":"Importez!AK7","v":0},{"$f":"Importez!AL7","v":0},{"$f":"Importez!AM7","v":0},null,{"$f":"Importez!AO7","v":0},{"$f":"Importez!AP7","v":0},{"$f":"Importez!AQ7","v":0},{"$f":"Importez!AR7","v":0}]
[null,null,null,null,"Attendus Déclinés",{"$f":"IF(Complétez!F8=0,\"\",Complétez!F8)","v":""},{"$f":"IF(Complétez!G8=0,\"\",Complétez!G8)","v":""},{"$f":"IF(Complétez!H8=0,\"\",Complétez!H8)","v":" "},{"$f":"IF(Complétez!I8=0,\"\",Complétez!I8)","v":" "},{"$f":"IF(J5=\"Notes\",\"La couleur de la note obtenue par attendu correspond aux 4 degrés d'acquisition, de maîtrise\",IF(J5=\"Etape\",\"Seuls les quatre degrés d'acquisition, de maîtrise apparaissent (pas de note), il s'agit de vous projeter sur la fin de la séquence\",IF(J5=\"Mixte\",\"les 4 degrés d'acquisition, de maîtrise et la note sont ici rappelés\",\"\")))","v":""},{"$f":"IF(Complétez!K8=0,\"\",Complétez!K8)","v":""},{"$f":"IF(Complétez!L8=0,\"\",Complétez!L8)","v":""},{"$f":"IF(Complétez!M8=0,\"\",Complétez!M8)","v":""},{"$f":"IF(Complétez!N8=0,\"\",Complétez!N8)","v":""},{"$f":"IF(O5=\"Notes\",\"La couleur de la note obtenue par attendu correspond aux 4 degrés d'acquisition, de maîtrise\",IF(O5=\"Etape\",\"Seuls les quatre degrés d'acquisition, de maîtrise apparaissent (pas de note), il s'agit de vous projeter sur la fin de la séquence\",IF(O5=\"Mixte\",\"les 4 degrés d'acquisition, de maîtrise et la note sont ici rappelés\",\"\")))","v":""},{"$f":"IF(Complétez!P8=0,\"\",Complétez!P8)","v":""},{"$f":"IF(Complétez!Q8=0,\"\",Complétez!Q8)","v":""},{"$f":"IF(Complétez!R8=0,\"\",Complétez!R8)","v":""},{"$f":"IF(Complétez!S8=0,\"\",Complétez!S8)","v":""},{"$f":"IF(T5=\"Notes\",\"La couleur de la note obtenue par attendu correspond aux 4 degrés d'acquisition, de maîtrise\",IF(T5=\"Etape\",\"Seuls les quatre degrés d'acquisition, de maîtrise apparaissent (pas de note), il s'agit de vous projeter sur la fin de la séquence\",IF(T5=\"Mixte\",\"les 4 degrés d'acquisition, de maîtrise et la note sont ici rappelés\",\"\")))","v":""},{"$f":"IF(Complétez!U8=0,\"\",Complétez!U8)","v":""},{"$f":"IF(Complétez!V8=0,\"\",Complétez!V8)","v":""},{"$f":"IF(Complétez!W8=0,\"\",Complétez!W8)","v":""},{"$f":"IF(Complétez!X8=0,\"\",Complétez!X8)","v":""},{"$f":"IF(Y5=\"Notes\",\"La couleur de la note obtenue par attendu correspond aux 4 degrés d'acquisition, de maîtrise\",IF(Y5=\"Etape\",\"Seuls les quatre degrés d'acquisition, de maîtrise apparaissent (pas de note), il s'agit de vous projeter sur la fin de la séquence\",IF(Y5=\"Mixte\",\"les 4 degrés d'acquisition, de maîtrise et la note sont ici rappelés\",\"\")))","v":""},{"$f":"IF(Complétez!Z8=0,\"\",Complétez!Z8)","v":""},{"$f":"IF(Complétez!AA8=0,\"\",Complétez!AA8)","v":""},{"$f":"IF(Complétez!AB8=0,\"\",Complétez!AB8)","v":""},{"$f":"IF(Complétez!AC8=0,\"\",Complétez!AC8)","v":""},{"$f":"IF(AD5=\"Notes\",\"La couleur de la note obtenue par attendu correspond aux 4 degrés d'acquisition, de maîtrise\",IF(AD5=\"Etape\",\"Seuls les quatre degrés d'acquisition, de maîtrise apparaissent (pas de note), il s'agit de vous projeter sur la fin de la séquence\",IF(AD5=\"Mixte\",\"les 4 degrés d'acquisition, de maîtrise et la note sont ici rappelés\",\"\")))","v":""},{"$f":"IF(Complétez!AE8=0,\"\",Complétez!AE8)","v":""},{"$f":"IF(Complétez!AF8=0,\"\",Complétez!AF8)","v":""},{"$f":"IF(Complétez!AG8=0,\"\",Complétez!AG8)","v":""},{"$f":"IF(Complétez!AH8=0,\"\",Complétez!AH8)","v":""},{"$f":"IF(AI5=\"Notes\",\"La couleur de la note obtenue par attendu correspond aux 4 degrés d'acquisition, de maîtrise\",IF(AI5=\"Etape\",\"Seuls les quatre degrés d'acquisition, de maîtrise apparaissent (pas de note), il s'agit de vous projeter sur la fin de la séquence\",IF(AI5=\"Mixte\",\"les 4 degrés d'acquisition, de maîtrise et la note sont ici rappelés\",\"\")))","v":""},null,null,null,null,{"$f":"IF(AN5=\"Notes\",\"La couleur de la note obtenue par attendu correspond aux 4 degrés d'acquisition, de maîtrise\",IF(AN5=\"Etape\",\"Seuls les quatre degrés d'acquisition, de maîtrise apparaissent (pas de note), il s'agit de vous projeter sur la fin de la séquence\",IF(AN5=\"Mixte\",\"les 4 degrés d'acquisition, de maîtrise et la note sont ici rappelés\",\"\")))","v":""},null,null,null,null,{"$f":"IF(AS5=\"Notes\",\"La couleur de la note obtenue par attendu correspond aux 4 degrés d'acquisition, de maîtrise\",IF(AS5=\"Etape\",\"Seuls les quatre degrés d'acquisition, de maîtrise apparaissent (pas de note), il s'agit de vous projeter sur la fin de la séquence\",IF(AS5=\"Mixte\",\"les 4 degrés d'acquisition, de maîtrise et la note sont ici rappelés\",\"\")))","v":""}]
[null,null,"Code ?","Qui ?",{"$f":"Importez!E9","v":0},{"$f":"IF(Complétez!F9=0,\"\",Complétez!F9)","v":""},null,null,null,{"$f":"Importez!J8","v":0},{"$f":"IF(Complétez!K9=0,\"\",Complétez!K9)","v":""},null,null,null,{"$f":"Importez!O8","v":0},{"$f":"IF(Complétez!P9=0,\"\",Complétez!P9)","v":""},null,null,null,{"$f":"Importez!T8","v":0},{"$f":"IF(Complétez!U9=0,\"\",Complétez!U9)","v":""},null,null,null,{"$f":"Importez!Y8","v":0},{"$f":"IF(Complétez!Z9=0,\"\",Complétez!Z9)","v":""},null,null,null,{"$f":"Importez!AD8","v":0},{"$f":"IF(Complétez!AE9=0,\"\",Complétez!AE9)","v":""},null,null,null,{"$f":"Importez!AI8","v":0},{"$f":"IF(Complétez!AJ9=0,\"\",Complétez!AJ9)","v":""},null,null,null,{"$f":"Importez!AN8","v":0},{"$f":"IF(Complétez!AO9=0,\"\",Complétez!AO9)","v":""},null,null,null,{"$f":"Importez!AS8","v":0}]
[null,null,46,"ARNAUD Soline",null,{"$f":"IFERROR(VLOOKUP($D$10,Importez!$C$10:$AS$47,4,0),\"-\")","v":"-"},{"$f":"IFERROR(VLOOKUP($D$10,Importez!$C$10:$AS$47,5,0),\"-\")","v":"-"},{"$f":"IFERROR(VLOOKUP($D$10,Importez!$C$10:$AS$47,6,0),\"-\")","v":"-"},{"$f":"IFERROR(VLOOKUP($D$10,Importez!$C$10:$AS$47,7,0),\"-\")","v":"-"},{"$f":"IFERROR(VLOOKUP($D$10,Importez!$C$10:$AS$47,8,0),\"-\")","v":"-"},{"$f":"IFERROR(VLOOKUP($D$10,Importez!$C$10:$AS$47,9,0),\"-\")","v":"-"},{"$f":"IFERROR(VLOOKUP($D$10,Importez!$C$10:$AS$47,10,0),\"-\")","v":"-"},{"$f":"IFERROR(VLOOKUP($D$10,Importez!$C$10:$AS$47,11,0),\"-\")","v":"-"},{"$f":"IFERROR(VLOOKUP($D$10,Importez!$C$10:$AS$47,12,0),\"-\")","v":"-"},{"$f":"IFERROR(VLOOKUP($D$10,Importez!$C$10:$AS$47,13,0),\"-\")","v":"-"},{"$f":"IFERROR(VLOOKUP($D$10,Importez!$C$10:$AS$47,14,0),\"-\")","v":"-"},{"$f":"IFERROR(VLOOKUP($D$10,Importez!$C$10:$AS$47,15,0),\"-\")","v":"-"},{"$f":"IFERROR(VLOOKUP($D$10,Importez!$C$10:$AS$47,16,0),\"-\")","v":"-"},{"$f":"IFERROR(VLOOKUP($D$10,Importez!$C$10:$AS$47,17,0),\"-\")","v":"-"},{"$f":"IFERROR(VLOOKUP($D$10,Importez!$C$10:$AS$47,18,0),\"-\")","v":"-"},{"$f":"IFERROR(VLOOKUP($D$10,Importez!$C$10:$AS$47,19,0),\"-\")","v":"-"},{"$f":"IFERROR(VLOOKUP($D$10,Importez!$C$10:$AS$47,20,0),\"-\")","v":"-"},{"$f":"IFERROR(VLOOKUP($D$10,Importez!$C$10:$AS$47,21,0),\"-\")","v":"-"},{"$f":"IFERROR(VLOOKUP($D$10,Importez!$C$10:$AS$47,22,0),\"-\")","v":"-"},{"$f":"IFERROR(VLOOKUP($D$10,Importez!$C$10:$AS$47,23,0),\"-\")","v":"-"},{"$f":"IFERROR(VLOOKUP($D$10,Importez!$C$10:$AS$47,24,0),\"-\")","v":"-"},{"$f":"IFERROR(VLOOKUP($D$10,Importez!$C$10:$AS$47,25,0),\"-\")","v":"-"},{"$f":"IFERROR(VLOOKUP($D$10,Importez!$C$10:$AS$47,26,0),\"-\")","v":"-"},{"$f":"IFERROR(VLOOKUP($D$10,Importez!$C$10:$AS$47,27,0),\"-\")","v":"-"},{"$f":"IFERROR(VLOOKUP($D$10,Importez!$C$10:$AS$47,28,0),\"-\")","v":"-"},{"$f":"IFERROR(VLOOKUP($D$10,Importez!$C$10:$AS$47,29,0),\"-\")","v":"-"},{"$f":"IFERROR(VLOOKUP($D$10,Importez!$C$10:$AS$47,30,0),\"-\")","v":"-"},{"$f":"IFERROR(VLOOKUP($D$10,Importez!$C$10:$AS$47,31,0),\"-\")","v":"-"},{"$f":"IFERROR(VLOOKUP($D$10,Importez!$C$10:$AS$47,32,0),\"-\")","v":"-"},{"$f":"IFERROR(VLOOKUP($D$10,Importez!$C$10:$AS$47,33,0),\"-\")","v":"-"},{"$f":"IFERROR(VLOOKUP($D$10,Importez!$C$10:$AS$47,34,0),\"-\")","v":"-"},{"$f":"IFERROR(VLOOKUP($D$10,Importez!$C$10:$AS$47,35,0),\"-\")","v":"-"},{"$f":"IFERROR(VLOOKUP($D$10,Importez!$C$10:$AS$47,36,0),\"-\")","v":"-"},{"$f":"IFERROR(VLOOKUP($D$10,Importez!$C$10:$AS$47,37,0),\"-\")","v":"-"},{"$f":"IFERROR(VLOOKUP($D$10,Importez!$C$10:$AS$47,38,0),\"-\")","v":"-"},{"$f":"IFERROR(VLOOKUP($D$10,Importez!$C$10:$AS$47,39,0),\"-\")","v":"-"},{"$f":"IFERROR(VLOOKUP($D$10,Importez!$C$10:$AS$47,40,0),\"-\")","v":"-"},{"$f":"IFERROR(VLOOKUP($D$10,Importez!$C$10:$AS$47,41,0),\"-\")","v":"-"},{"$f":"IFERROR(VLOOKUP($D$10,Importez!$C$10:$AS$47,42,0),\"-\")","v":"-"},{"$f":"IFERROR(VLOOKUP($D$10,Importez!$C$10:$AS$47,43,0),\"-\")","v":"-"}]
[null,null,null,"Moyennes de Classe",null,{"$f":"Importez!F47","v":0},{"$f":"Importez!G47","v":0},{"$f":"Importez!H47","v":0},{"$f":"Importez!I47","v":0},{"$f":"Importez!J47","v":0},{"$f":"Importez!K47","v":0},{"$f":"Importez!L47","v":0},{"$f":"Importez!M47","v":0},{"$f":"Importez!N47","v":0},{"$f":"Importez!O47","v":0},{"$f":"Importez!P47","v":0},{"$f":"Importez!Q47","v":0},{"$f":"Importez!R47","v":0},{"$f":"Importez!S47","v":0},{"$f":"Importez!T47","v":0},{"$f":"Importez!U47","v":0},{"$f":"Importez!V47","v":0},{"$f":"Importez!W47","v":0},{"$f":"Importez!X47","v":0},{"$f":"Importez!Y47","v":0},{"$f":"Importez!Z47","v":0},{"$f":"Importez!AA47","v":0},{"$f":"Importez!AB47","v":0},{"$f":"Importez!AC47","v":0},{"$f":"Importez!AD47","v":0},{"$f":"Importez!AE47","v":0},{"$f":"Importez!AF47","v":0},{"$f":"Importez!AG47","v":0},{"$f":"Importez!AH47","v":0},{"$f":"Importez!AI47","v":0},{"$f":"Importez!AJ47","v":0},{"$f":"Importez!AK47","v":0},{"$f":"Importez!AL47","v":0},{"$f":"Importez!AM47","v":0},{"$f":"Importez!AN47","v":0},{"$f":"Importez!AO47","v":0},{"$f":"Importez!AP47","v":0},{"$f":"Importez!AQ47","v":0},{"$f":"Importez!AR47","v":0},{"$f":"Importez!AS47","v":0}]
[null,null,null,null,null,{"$f":"Importez!F48","v":0},{"$f":"Importez!G48","v":0},{"$f":"Importez!H48","v":0},{"$f":"Importez!I48","v":0},{"$f":"Importez!J48","v":0},{"$f":"Importez!K48","v":0},{"$f":"Importez!L48","v":0},{"$f":"Importez!M48","v":0},{"$f":"Importez!N48","v":0},{"$f":"Importez!O48","v":0},{"$f":"Importez!P48","v":0},{"$f":"Importez!Q48","v":0},{"$f":"Importez!R48","v":0},{"$f":"Importez!S48","v":0},{"$f":"Importez!T48","v":0},{"$f":"Importez!U48","v":0},{"$f":"Importez!V48","v":0},{"$f":"Importez!W48","v":0},{"$f":"Importez!X48","v":0},{"$f":"Importez!Y48","v":0},{"$f":"Importez!Z48","v":0},{"$f":"Importez!AA48","v":0},{"$f":"Importez!AB48","v":0},{"$f":"Importez!AC48","v":0},{"$f":"Importez!AD48","v":0},{"$f":"Importez!AE48","v":0},{"$f":"Importez!AF48","v":0},{"$f":"Importez!AG48","v":0},{"$f":"Importez!AH48","v":0},{"$f":"Importez!AI48","v":0},{"$f":"Importez!AJ48","v":0},{"$f":"Importez!AK48","v":0},{"$f":"Importez!AL48","v":0},{"$f":"Importez!AM48","v":0},{"$f":"Importez!AN48","v":0},{"$f":"Importez!AO48","v":0},{"$f":"Importez!AP48","v":0},{"$f":"Importez!AQ48","v":0},{"$f":"Importez!AR48","v":0},{"$f":"Importez!AS48","v":0}]
[null,null,null,null,null,{"$f":"Importez!F49","v":0},{"$f":"Importez!G49","v":0},{"$f":"Importez!H49","v":0},{"$f":"Importez!I49","v":0},{"$f":"Importez!J49","v":0},{"$f":"Importez!K49","v":0},{"$f":"Importez!L49","v":0},{"$f":"Importez!M49","v":0},{"$f":"Importez!N49","v":0},{"$f":"Importez!O49","v":0},{"$f":"Importez!P49","v":0},{"$f":"Importez!Q49","v":0},{"$f":"Importez!R49","v":0},{"$f":"Importez!S49","v":0},{"$f":"Importez!T49","v":0},{"$f":"Importez!U49","v":0},{"$f":"Importez!V49","v":0},{"$f":"Importez!W49","v":0},{"$f":"Importez!X49","v":0},{"$f":"Importez!Y49","v":0},{"$f":"Importez!Z49","v":0},{"$f":"Importez!AA49","v":0},{"$f":"Importez!AB49","v":0},{"$f":"Importez!AC49","v":0},{"$f":"Importez!AD49","v":0},{"$f":"Importez!AE49","v":0},{"$f":"Importez!AF49","v":0},{"$f":"Importez!AG49","v":0},{"$f":"Importez!AH49","v":0},{"$f":"Importez!AI49","v":0},{"$f":"Importez!AJ49","v":0},{"$f":"Importez!AK49","v":0},{"$f":"Importez!AL49","v":0},{"$f":"Importez!AM49","v":0},{"$f":"Importez!AN49","v":0},{"$f":"Importez!AO49","v":0},{"$f":"Importez!AP49","v":0},{"$f":"Importez!AQ49","v":0},{"$f":"Importez!AR49","v":0},{"$f":"Importez!AS49","v":0}]
[null,null,null,null,null,{"$f":"Importez!F50","v":0},{"$f":"Importez!G50","v":0},{"$f":"Importez!H50","v":0},{"$f":"Importez!I50","v":0},{"$f":"Importez!J50","v":0},{"$f":"Importez!K50","v":0},{"$f":"Importez!L50","v":0},{"$f":"Importez!M50","v":0},{"$f":"Importez!N50","v":0},{"$f":"Importez!O50","v":0},{"$f":"Importez!P50","v":0},{"$f":"Importez!Q50","v":0},{"$f":"Importez!R50","v":0},{"$f":"Importez!S50","v":0},{"$f":"Importez!T50","v":0},{"$f":"Importez!U50","v":0},{"$f":"Importez!V50","v":0},{"$f":"Importez!W50","v":0},{"$f":"Importez!X50","v":0},{"$f":"Importez!Y50","v":0},{"$f":"Importez!Z50","v":0},{"$f":"Importez!AA50","v":0},{"$f":"Importez!AB50","v":0},{"$f":"Importez!AC50","v":0},{"$f":"Importez!AD50","v":0},{"$f":"Importez!AE50","v":0},{"$f":"Importez!AF50","v":0},{"$f":"Importez!AG50","v":0},{"$f":"Importez!AH50","v":0},{"$f":"Importez!AI50","v":0},{"$f":"Importez!AJ50","v":0},{"$f":"Importez!AK50","v":0},{"$f":"Importez!AL50","v":0},{"$f":"Importez!AM50","v":0},{"$f":"Importez!AN50","v":0},{"$f":"Importez!AO50","v":0},{"$f":"Importez!AP50","v":0},{"$f":"Importez!AQ50","v":0},{"$f":"Importez!AR50","v":0},{"$f":"Importez!AS50","v":0}]
[]
[null,null,null,null,"Repères de progrès",null,null,null,null,"Etape 4",null,null,null,null,"Etape 4",null,null,null,null,"Etape 4",null,null,null,null,"Etape 4",null,null,null,null,"Etape 4",null,null,null,null,"Etape 4",null,null,null,null,"Etape 4",null,null,null,null,"Etape 4"]
[null,null,null,null,null,null,null,null,null,"Etape 3",null,null,null,null,"Etape 3",null,null,null,null,"Etape 3",null,null,null,null,"Etape 3",null,null,null,null,"Etape 3",null,null,null,null,"Etape 3",null,null,null,null,"Etape 3",null,null,null,null,"Etape 3"]
[null,null,null,null,null,null,null,null,null,"Etape 2",null,null,null,null,"Etape 2",null,null,null,null,"Etape 2",null,null,null,null,"Etape 2",null,null,null,null,"Etape 2",null,null,null,null,"Etape 2",null,null,null,null,"Etape 2",null,null,null,null,"Etape 2"]
[null,null,null,null,null,null,null,null,null,"Etape 1",null,null,null,null,"Etape 1",null,null,null,null,"Etape 1",null,null,null,null,"Etape 1",null,null,null,null,"Etape 1",null,null,null,null,"Etape 1",null,null,null,null,"Etape 1",null,null,null,null,"Etape 1"]

{"sheet":"Attendus Prog","index":3,"n_rows":9,"n_cols":44,"rows_kept":9,"cut":false,"hidden":false,"merged":[]}
[null,"CP1","ci1","cv1","ee1","ge1","os1","pe1","ss1","cp2","ci2","cv2","ee2","ge2","os2","pe2","ss2","cp3","ci3","cv3","ee3","ge3","os3","pe3","ss3","cp4","ci4","cv4","ee4","ge4","os4","pe4","ss4","cp5","ci5","cv5","ee5","ge5","os5","pe5","ss5","Collège cycle III","CAP","GT Bac Lycée"]
[1,"Produire et répartir intentionnellement ses efforts en mobilisant ses ressources pour gagner ou pour battre un record","RÉALISER DES EFFORTS ET ENCHAÎNER PLUSIEURS ACTIONS MOTRICES DANS DIFFÉRENTES FAMILLES POUR ALLER PLUS VITE, PLUS HAUT, PLUS LOIN OU PLUS LONGTEMPS","Gérer son effort, faire des choix pour réaliser la meilleure performance dans au moins 2 familles athlétiques et/ou au moins 2 styles de nage",{"$f":"Complétez!F34","v":0},"S’engager pour produire une performance maximale à l’aide de techniques efficaces, en gérant les efforts musculaires et respiratoires nécessaires et en faisant le meilleur compromis entre l’accroissement de vitesse d’exécution et de précision","S’engager pour produire une performance maximale à l’aide de techniques efficaces, en gérant les efforts musculaires et respiratoires nécessaires et en faisant le meilleur compromis entre l’accroissement de vitesse d’exécution et de précision","Produire et répartir stratégiquement ses efforts en mobilisant ses ressources de façon optimale pour gagner ou pour battre un record","S’engager, individuellement et collectivement, pour atteindre son plus haut niveau de performance dans des pratiques physiques, sportives et artistiques ; AFS 1","Conduire un déplacement adapté à ses ressources pour effectuer le trajet prévu dans sa totalité ; le cas échéant, savoir renoncer.","RÉALISER, SEUL OU À PLUSIEURS, UN PARCOURS DANS PLUSIEURS ENVIRONNEMENTS INHABITUELS, EN MILIEU NATUREL AMÉNAGÉ OU ARTIFICIEL","Réussir un déplacement planifié dans un milieu naturel aménagé ou artificiellement recréé plus ou moins connu",{"$f":"Complétez!G34","v":0},"S’engager à l’aide d’une motricité spécifique pour réaliser en sécurité et à son meilleur niveau, un itinéraire dans un contexte incertain ","S’engager à l’aide d’une motricité spécifique pour réaliser en sécurité et à son meilleur niveau, un itinéraire dans un contexte incertain ","Anticiper et planifier son itinéraire pour concevoir et conduire dans sa totalité un projet de déplacement ","S’engager, individuellement et collectivement, pour atteindre son plus haut niveau de performance dans des pratiques physiques, sportives et artistiques ; AFS 1","S’engager devant des spectateurs ou des juges pour produire ou reproduire des formes corporelles simples, mais maîtrisées au service d’une intention","RÉALISER EN PETITS GROUPES DEUX SÉQUENCES, UNE À VISÉE ACROBATIQUE DESTINÉE À ÊTRE JUGÉE, UNE AUTRE À VISÉE ARTISTIQUE DESTINÉE À ÊTRE APPRÉCIÉE ET À ÉMOUVOIR","Mobiliser les capacités expressives du corps pour imaginer, composer et interpréter une séquence artistique ou acrobatique",{"$f":"Complétez!H34","v":0},"S’engager pour composer et réaliser un enchaînement à visée esthétique ou acrobatique destiné à être jugé, en combinant des formes corporelles codifiées","S’engager pour composer et réaliser un enchaînement à visée esthétique ou acrobatique destiné à être jugé, en combinant des formes corporelles codifiées","Accomplir une prestation animée d’une intention dans la perspective d’être jugé et/ou apprécié","Analyser et interpréter des expériences diverses relatives aux APSA pour préciser et enrichir son parcours de formation ; AFS2","Identifier le déséquilibre adverse et en profiter pour produire rapidement l’action décisive et marquer le point","S’ORGANISER TACTIQUEMENT POUR GAGNER LE DUEL OU LE MATCH EN IDENTIFIANT LES SITUATIONS FAVORABLES DE MARQUE","Réaliser des actions décisives en situation favorable afin de faire basculer le rapport de force en sa faveur ou en faveur de l'équipe adverse",{"$f":"Complétez!I34","v":0},"S’engager pour gagner une rencontre en faisant des choix techniques et tactiques pertinents au regard de l’analyse du rapport de force ","S’engager pour gagner une rencontre en faisant des choix techniques et tactiques pertinents au regard de l’analyse du rapport de force ","Réaliser des choix tactiques et stratégiques pour faire basculer le rapport de force en sa faveur et marquer le point","S’engager, individuellement et collectivement, pour atteindre son plus haut niveau de performance dans des pratiques physiques, sportives et artistiques ; AFS 1","Construire et stabiliser une motricité spécifique pour être efficace dans le suivi d’un thème d’entraînement en cohérence avec un mobile personnel",null,null,{"$f":"Complétez!J34","v":0},"S’engager pour obtenir les effets recherchés selon son projet personnel, en faisant des choix de paramètres d’entraînement cohérents avec le thème retenu ","S’engager pour obtenir les effets recherchés selon son projet personnel, en faisant des choix de paramètres d’entraînement cohérents avec le thème retenu ","Concevoir et mettre en œuvre un projet d’entraînement pour répondre à un mobile personnel de développement","S’engager, individuellement et collectivement, pour atteindre son plus haut niveau de performance dans des pratiques physiques, sportives et artistiques ; AFS 1","Collège cycle IV","Pro Bac Lycée","Option EPS"]
["1b",null,"COMBINER UNE COURSE, UN SAUT, UN LANCER POUR FAIRE LA MEILLEURE PERFORMANCE CUMULÉE",null,{"$f":"Complétez!F35","v":0},null,null,null,"Analyser et interpréter des expériences diverses relatives aux APSA pour préciser et enrichir son parcours de formation ; AFS2",null,null,null,{"$f":"Complétez!G35","v":0},null,null,null,"Analyser et interpréter des expériences diverses relatives aux APSA pour préciser et enrichir son parcours de formation ; AFS2",null,null,null,{"$f":"Complétez!H35","v":0},"Interpréter une chorégraphie collective selon un projet artistique en mobilisant une motricité expressive et des procédés de composition ","Interpréter une chorégraphie collective selon un projet artistique en mobilisant une motricité expressive et des procédés de composition ",null,"Mobiliser ses connaissances pour construire une argumentation écrite ou orale sur une problématique relative à la culture sportive ; AFS 3",null,null,null,{"$f":"Complétez!I35","v":0},null,null,null,"Analyser et interpréter des expériences diverses relatives aux APSA pour préciser et enrichir son parcours de formation ; AFS2",null,null,null,{"$f":"Complétez!J35","v":0},null,null,null,"Analyser et interpréter des expériences diverses relatives aux APSA pour préciser et enrichir son parcours de formation ; AFS2","Equipe","Equipe","Spécialité EPPCS"]
[2,"Connaître et utiliser des techniques adaptées pour produire la meilleure performance ","MESURER ET QUANTIFIER LES PERFORMANCES, LES ENREGISTRER, LES COMPARER, LES CLASSER, LES TRADUIRE EN REPRÉSENTATIONS GRAPHIQUES","S'engager dans un programme de préparation individuel ou collectif",{"$f":"Complétez!F36","v":0},"S’entraîner, individuellement et collectivement, pour réaliser une performance ","S’entraîner, individuellement et collectivement, pour réaliser une performance ","Connaître et utiliser des techniques efficaces pour produire la meilleure performance","Mobiliser ses connaissances pour construire une argumentation écrite ou orale sur une problématique relative à la culture sportive ; AFS 3","Utiliser des techniques efficaces pour adapter son déplacement aux caractéristiques du milieu.","CONNAÎTRE ET RESPECTER LES RÈGLES DE SÉCURITÉ QUI S’APPLIQUENT À CHAQUE ENVIRONNEMENT","Gérer ses ressources pour réaliser en totalité un parcours sécurisé",{"$f":"Complétez!G36","v":0},"S’entraîner individuellement et collectivement, pour se déplacer de manière efficiente et en toute sécurité ","S’entraîner individuellement et collectivement, pour se déplacer de manière efficiente et en toute sécurité ","Mobiliser des techniques efficientes pour adapter son déplacement aux caractéristiques du milieu  ","Mobiliser ses connaissances pour construire une argumentation écrite ou orale sur une problématique relative à la culture sportive ; AFS 3","Utiliser des techniques pour enrichir sa motricité, la rendre plus originale, plus efficace au service de la prestation prévue","SAVOIR FILMER UNE PRESTATION POUR LA REVOIR ET LA FAIRE ÉVOLUER","Apprécier des prestations en utilisant différents supports d'observation et d'analyse",{"$f":"Complétez!H36","v":0},"Se préparer et s’engager, individuellement et collectivement, pour s’exprimer devant un public et susciter des émotions ","Se préparer et s’engager, individuellement et collectivement, pour s’exprimer devant un public et susciter des émotions ","Mobiliser des techniques de plus en plus complexes pour rendre plus fluide la prestation et pour l’enrichir de formes corporelles variées et maîtrisées","Concevoir, mettre en œuvre et évaluer un projet relatif aux activités physiques, sportives et artistiques. AFS 4","Utiliser des techniques et des tactiques d’attaque simples et adaptées pour favoriser des occasions de marquer et mobiliser des moyens de défense pour s’opposer","MAINTENIR UN ENGAGEMENT MOTEUR EFFICACE SUR TOUT LE TEMPS DE JEU PRÉVU","Adapter son engagement moteur en fonction de son état physique et du rapport de force",{"$f":"Complétez!I36","v":0},"Se préparer et s’entraîner, individuellement ou collectivement, pour conduire et maîtriser un affrontement collectif ou interindividuel ","Se préparer et s’entraîner, individuellement ou collectivement, pour conduire et maîtriser un affrontement collectif ou interindividuel ","Mobiliser des techniques d’attaque efficaces pour se créer et exploiter des occasions de marquer ; résister et neutraliser individuellement ou collectivement l’attaque adverse pour rééquilibrer le rapport de force ","Mobiliser ses connaissances pour construire une argumentation écrite ou orale sur une problématique relative à la culture sportive ; AFS 3","Mettre en lien des ressentis avec une charge de travail pour réguler cette charge de manière autonome",null,null,{"$f":"Complétez!J36","v":0},"S’entraîner, individuellement ou collectivement, pour développer ses ressources et s’entretenir en fonction des effets recherchés ","S’entraîner, individuellement ou collectivement, pour développer ses ressources et s’entretenir en fonction des effets recherchés ","Éprouver différentes méthodes d’entraînement et en identifier les principes pour les réutiliser dans sa séance","Mobiliser ses connaissances pour construire une argumentation écrite ou orale sur une problématique relative à la culture sportive ; AFS 3",null,null,"Equipe"]
[3,"S’engager et persévérer, seul ou à plusieurs, dans des efforts répétés pour progresser dans une activité de performance","ASSUMER LES RÔLES DE CHRONOMÉTREUR ET D’OBSERVATEUR","Planifier et réaliser une épreuve combinée",{"$f":"Complétez!F37","v":0},"Choisir et assumer les rôles qui permettent un fonctionnement collectif solidaire ","Choisir et assumer les rôles qui permettent un fonctionnement collectif solidaire ","Analyser sa performance pour adapter son projet et progresser","Concevoir, mettre en œuvre et évaluer un projet relatif aux activités physiques, sportives et artistiques. AFS 4","Sélectionner des informations utiles pour planifier son itinéraire et l’adapter éventuellement en cours de déplacement","IDENTIFIER LA PERSONNE RESPONSABLE À ALERTER OU LA PROCÉDURE EN CAS DE PROBLÈME","Assurer la sécurité de son camarade",{"$f":"Complétez!G37","v":0},"Coopérer pour réaliser un projet de déplacement, en toute sécurité ","Coopérer pour réaliser un projet de déplacement, en toute sécurité ","Analyser sa prestation pour comprendre les alternatives possibles et ajuster son projet en fonction de ses ressources et de celles du milieu ","Concevoir, mettre en œuvre et évaluer un projet relatif aux activités physiques, sportives et artistiques. AFS 4","Prévoir et mémoriser le déroulement des temps forts et des temps faibles de sa prestation pour la réaliser dans son intégralité en restant concentré","RESPECTER LES PRESTATIONS DES AUTRES ET ACCEPTER DE SE PRODUIRE DEVANT LES AUTRES","Participer activement au sein d'un groupe, à l'élaboration et à la formalisation d'un projet artistique",{"$f":"Complétez!H37","v":0},"Choisir et assumer des rôles au service de la prestation collective ","Choisir et assumer des rôles au service de la prestation collective ","Composer et organiser dans le temps et l’espace le déroulement des moments forts et faibles de sa prestation pour se produire devant des spectateurs/juges","S’engager pour composer et réaliser un enchaînement à visée esthétique ou acrobatique destiné à être jugé, en combinant des formes corporelles codifiées","Persévérer face à la difficulté et accepter la répétition pour améliorer son efficacité motrice","RESPECTER LES PARTENAIRES, LES ADVERSAIRES ET L’ARBITRE","Etre solidaire de ses partenaires et respectueux de son (ses) adversaires et de l'arbitre",{"$f":"Complétez!I37","v":0},"Choisir et assumer les rôles qui permettent un fonctionnement collectif solidaire ","Choisir et assumer les rôles qui permettent un fonctionnement collectif solidaire ","Analyser les forces et les faiblesses en présence par l’exploitation de données objectives pour faire des choix tactiques et stratégiques adaptés à une prochaine confrontation","Concevoir, mettre en œuvre et évaluer un projet relatif aux activités physiques, sportives et artistiques. AFS 4","Mobiliser différentes méthodes d’entraînement pour fonder ses choix",null,null,{"$f":"Complétez!J37","v":0},"Coopérer pour faire progresser ","Coopérer pour faire progresser ","Systématiser un retour réflexif sur sa pratique pour réguler sa charge de travail en fonction d’indicateurs de l’effort (fréquence cardiaque, ressenti musculaire et respiratoire fatigue générale)","Concevoir, mettre en œuvre et évaluer un projet relatif aux activités physiques, sportives et artistiques. AFS 4"]
[4,"S’impliquer dans des rôles sociaux pour assurer le bon déroulement d’une épreuve de production de performance",null,"S'échauffer avant un effort",{"$f":"Complétez!F38","v":0},null,"Mettre en relation unthème avec une ou des APSA","Assumer des rôles sociaux pour organiser une épreuve de production de performance, un concours","S’engager pour produire une performance maximale à l’aide de techniques efficaces, en gérant les efforts musculaires et respiratoires nécessaires et en faisant le meilleur compromis entre l’accroissement de vitesse d’exécution et de précision","S’impliquer dans des rôles sociaux pour assurer le bon fonctionnement d’une activité de pleine nature","VALIDER L’ASNS, CONFORMÉMENT À L’ARRÊTÉ DU 28 février 2022","Respecter et faire respecter les règles de sécurité",{"$f":"Complétez!G38","v":0},null,"Mettre en relation unthème avec une ou des APSA","Assumer les rôles sociaux pour organiser la pratique des activités de pleine nature","S’engager à l’aide d’une motricité spécifique pour réaliser en sécurité et à son meilleur niveau, un itinéraire dans un contexte incertain ","Utiliser des critères simples pour apprécier et/ou évaluer la prestation indépendamment de la personne",null,null,{"$f":"Complétez!H38","v":0},null,"Mettre en relation un thème avec une ou des APSA","Assumer les rôles inhérents à la pratique artistique et acrobatique notamment en exprimant et en écoutant des arguments sur la base de critères partagés, pour situer une prestation","Interpréter une chorégraphie collective selon un projet artistique en mobilisant une motricité expressive et des procédés de composition ","Terminer la rencontre et accepter la défaite ou la victoire pour respecter l’adversaire intégrer les règles et s’impliquer dans les rôles sociaux pour permettre le bon déroulement du jeu ;","ASSURER DIFFÉRENTS RÔLES SOCIAUX (JOUEUR, ARBITRE, OBSERVATEUR, ORGANISATEUR) INHÉRENTS À L’ACTIVITÉ ET À L’ORGANISATION DE LA CLASSE","Observer et co-arbitrer",{"$f":"Complétez!I38","v":0},null,"Mettre en relation unthème avec une ou des APSA","Respecter et faire respecter les règles partagées pour que le jeu puisse se dérouler sereinement ; assumer plusieurs rôles sociaux pour permettre le bon déroulement du jeu","S’engager pour gagner une rencontre en faisant des choix techniques et tactiques pertinents au regard de l’analyse du rapport de force ","Coopérer et assurer les rôles sociaux pour aider au progrès individuel dans des conditions de sécurité",null,null,{"$f":"Complétez!J38","v":0},null,"Mettre en relation unthème avec une ou des APSA","Agir avec et pour les autres en vue de la réalisation du projet d’entraînement en assurant spontanément les rôles sociaux","S’engager pour obtenir les effets recherchés selon son projet personnel, en faisant des choix de paramètres d’entraînement cohérents avec le thème retenu "]
[5,"Se préparer à un effort long ou intense pour être efficace dans la production d’une performance à une échéance donnée",null,"Aider ses camarades et assumer différents rôles sociaux",{"$f":"Complétez!F39","v":0},null,"Enrichir et mettre en œuvre les liens entre un thème et une ou des APSA","Assurer la prise en charge de sa préparation et de celle d’un groupe, de façon autonome pour produire la meilleure performance possible","S’entraîner, individuellement et collectivement, pour réaliser une performance ","Contrôler ses émotions pour accepter de s’engager dans un environnement partiellement connu.",null,null,{"$f":"Complétez!G39","v":0},null,"Enrichir et mettre en œuvre les liens entre un thème et une ou des APSA","Se préparer et maintenir un engagement optimal permettant de garder sa lucidité tout au long de son parcours pour pouvoir réévaluer son itinéraire ou renoncer le cas échéant","S’entraîner individuellement et collectivement, pour se déplacer de manière efficiente et en toute sécurité ","Se préparer pour présenter une prestation complète, maîtrisée et sécurisée à une échéance donnée",null,null,{"$f":"Complétez!H39","v":0},null,"Enrichir et mettre en œuvre les liens entre un thème et une ou des APSA","Se préparer et s’engager pleinement pour présenter une prestation optimale et sécurisée à une échéance donnée","Se préparer et s’engager, individuellement et collectivement, pour s’exprimer devant un public et susciter des émotions ","Se préparer et systématiser sa préparation générale et spécifique pour être en pleine possession de ses moyens lors de la confrontation","ACCEPTER LE RÉSULTAT DE LA RENCONTRE ET ÊTRE CAPABLE DE LE COMMENTER","Accepter le résultat de la rencontre et savoir analyser avec objectivité",{"$f":"Complétez!I39","v":0},null,"Enrichir et mettre en œuvre les liens entre un thème et une ou des APSA","Savoir se préparer, s’entraîner et récupérer pour faire preuve d’autonomie","Se préparer et s’entraîner, individuellement ou collectivement, pour conduire et maîtriser un affrontement collectif ou interindividuel ","S’engager avec une intensité ciblée et persévérer dans l’effort pour envisager des progrès",null,null,{"$f":"Complétez!J39","v":0},null,"Enrichir et mettre en œuvre les liens entre un thème et une ou des APSA","Construire une motricité efficiente et contrôlée pour évoluer dans des conditions de sécurité","S’entraîner, individuellement ou collectivement, pour développer ses ressources et s’entretenir en fonction des effets recherchés "]
[6,"Identifier ses progrès et connaître sa meilleure performance réalisée pour la situer culturellement ",null,null,{"$f":"Complétez!F40","v":0},null,"Présenter à l'oral une problématique issue d'une réflexion étayée sur sa propre pratique, en lien avec une thématique choisie par l'élève","Connaître son niveau pour établir un projet de performance située culturellement","Choisir et assumer les rôles qui permettent un fonctionnement collectif solidaire ","Se préparer, connaître les risques, respecter la réglementation et appliquer les procédures d’urgence à mettre en œuvre dans les différents environnements de pratique pour s’y engager en sécurité",null,null,{"$f":"Complétez!G40","v":0},null,"Présenter à l'oral une problématique issue d'une réflexion étayée sur sa propre pratique, en lien avec une thématique choisie par l'élève","Respecter et faire respecter la réglementation et les procédures d’urgence pour les mettre en œuvre dans les différents environnements de pratique","Coopérer pour réaliser un projet de déplacement, en toute sécurité ","S’enrichir d’éléments de culture liés à la pratique abordée pour éveiller une curiosité culturelle",null,null,{"$f":"Complétez!H40","v":0},null,"Présenter à l'oral une problématique issue d'une réflexion étayée sur sa propre pratique, en lien avec une thématique choisie par l'élève","S’enrichir de la connaissance de productions de qualité issues du patrimoine culturel artistique et gymnique pour progresser dans sa propre pratique et aiguiser son regard de spectateur","Choisir et assumer des rôles au service de la prestation collective ","Connaître les excès et les dérives possibles de certaines pratiques sportives dans la société contemporaine pour situer et comprendre le sens des pratiques scolaires",null,null,{"$f":"Complétez!I40","v":0},null,"Présenter à l'oral une problématique issue d'une réflexion étayée sur sa propre pratique, en lien avec une thématique choisie par l'élève","Porter un regard critique sur les excès et dérives de certaines pratiques sportives pour comprendre le sens des pratiques scolaires","Choisir et assumer les rôles qui permettent un fonctionnement collectif solidaire ","Construire un regard averti sur les pratiques d’entretien de soi pour s’entraîner avec lucidité",null,null,{"$f":"Complétez!J40","v":0},null,"Présenter à l'oral une problématique issue d'une réflexion étayée sur sa propre pratique, en lien avec une thématique choisie par l'élève","Intégrer des conseils d’entraînement, de diététique, d’hygiène de vie pour se construire un mode de vie sain et une pratique raisonnée ","Coopérer pour faire progresser "]
[null,"CAP CA1","Cycle3 CA1","Cycle4 CA1","Equipe CA1","Bac GT CA1","OptionEPS CA1","Bac Pro CA1","EPPCS CA1","CAP CA2","Cycle3 CA2","Cycle4 CA2","Equipe CA2","Bac GT CA2","OptionEPS CA2","Bac Pro CA2","EPPCS CA2","CAP CA3","Cycle3 CA3","Cycle4 CA3","Equipe CA3","Bac GT CA3","OptionEPS CA3","Bac Pro CA3","EPPCS CA3","CAP CA4","Cycle3 CA4","Cycle4 CA4","Equipe CA4","Bac GT CA4","OptionEPS CA4","Bac Pro CA4","EPPCS CA4","CAP CA5","Cycle3 CA5","Cycle4 CA5","Equipe CA5","Bac GT CA5","OptionEPS CA5","Bac Pro CA5","EPPCS CA5"]